Workbook

Sheet RELEVÉS
A1: 08:48:00 | K1: J | N1: N | Q1: W | AL1: AG | AO1: AK | AV1: AX | AW1: AX
B2: Pression mini | E2: Pression maxi | H2: Température ressentie | K2: Température mini | N2: Température maxi | Q2: Vent en Km/h | AB2: Humidité H% | AL2: Pluie | AO2: Temps de pluie | AV2: Sonde Soleil
B3: mini | D3: heure | E3: maxi | G3: heure | H3: mini | J3: heure | K3: mini | M3: heure | N3: maxi | P3: heure | Q3: maxi | S3: Heure | U3: Moyenne | X3: Sens | Z3: Sens | AB3: Mini | AD3: Heure | AF3: Maxi | AH3: Heure | AJ3: Moy | AK3: mm | AM3: Heure | AO3: AK | AV3: =W1450/60/1440 -> 0
AO4: 0 à 7h | AQ4: 7 à 12h | AS4: 12 à 19h | AU4: 19h à 24h
B5: =MIN(H9:H1448) -> 1009.4 | D5: =VLOOKUP($B5,$H$9:$Q$1448,10,0) -> 17:55:00 | E5: =MAX(H9:H1448) -> 1022.2 | G5: =VLOOKUP($E5,$H$9:$Q$1448,10,0) -> 00:00:00 | H5: =MAX($B$9:$B$1448) -> 13.3 | J5: =VLOOKUP($H5,$D$9:$Q$1448,14,0) -> 11:22:00 | K5: =MIN($B$9:$B$1448) -> 11.3 | M5: =VLOOKUP($K5,$B$9:$Q$1448,16,0) -> 00:10:00 | N5: =MAX(B9:B1448) -> 13.3 | P5: =VLOOKUP($N5,$B$9:$Q$1448,16,0) -> 11:22:00 | Q5: =MAX(E9:F1448) -> 25.6 | S5: =VLOOKUP($Q5,$F$9:$Q$1448,12,0) -> 15:12:00 | U5: =AVERAGE(F9:F1766) -> 6.622509225 | Z5: ONO | AB5: =MIN(C9:C1448) -> 89 | AD5: =VLOOKUP($AB5,$C$9:$Q$1448,15,0) -> 00:00:00 | AF5: =MAX(C9:C1448) -> 99 | AH5: =VLOOKUP($AF5,$C$9:$Q$1448,15,0) -> 06:24:00 | AJ5: =AVERAGE(C9:C1448) -> 95.61070111 | AK5: =MAX(K9:K1448) -> 9.7 | AM5: =(U1450/60)/1440 -> 07:48:00 | AO5: =AO6+AQ6 -> 02:53:00 | AS5: =AS6+AU6 -> 04:55:00
AO6: =SUM(U9:U428)/60/1440 -> 01:47:00 | AQ6: =SUM(U429:U728)/60/1440 -> 01:06:00 | AS6: =SUM(U729:U1148)/60/1440 -> 04:55:00 | AU6: =SUM(U1148:U1448)/60/1440 -> 00:00:00
B7: 5 | C7: 6 | D7: 8 | E7: 9 | F7: 10 | G7: 11 | H7: 13 | I7: 14 | J7: 15 | K7: 16 | X7: Début
B8: T° Ext | C8: H% Ext | D8: Ressentie | E8: Vent | F8: Rafale | G8: Sens | H8: Pression | I8: UV | J8: Pluie 1h | K8: Jour | L8: Semaine | M8: Mois | N8: Année | O8: CH1 | P8: CH2 | Q8: Heures | R8: Date | S8: Maxi | T8: Graph | U8: Pluie | W8: Soleil | X8: Fin | Z8: Soleil
B9: 11.4 | C9: 89 | D9: 11.4 | E9: 3.6 | F9: 3.6 | G9: 221 | H9: 1022.2 | I9: 0 | J9: 0 | K9: 0 | L9: 31 | M9: 50.5 | N9: 50.5 | O9: 10 | P9: 10.2 | Q9: 00:00:00 | R9: 20230114 | Z9: N | AD9: 0 | AE9: 0
B10: 11.4 | C10: 89 | D10: 11.4 | E10: 1.8 | F10: 1.8 | G10: 99 | H10: 1022.2 | I10: 0 | J10: 0 | K10: 0 | L10: 31 | M10: 50.5 | N10: 50.5 | O10: 10 | P10: 10.2 | Q10: 00:01:00 | U10: =IF(J10>0,60,"") ->  | Z10: N | AB10: 0 | AD10: 11 | AE10: 22
B11: 11.4 | C11: 89 | D11: 11.4 | E11: 2.5 | F11: 3.6 | G11: 79 | H11: 1022.2 | I11: 0 | J11: 0 | K11: 0 | L11: 31 | M11: 50.5 | N11: 50.5 | O11: 9.9 | P11: 10.2 | Q11: 00:02:00 | U11: =IF(J11>0,60,"") ->  | Z11: NNE | AB11: 22.5 | AD11: =AB11+$AD$10 -> 33.5 | AE11: 45 | AM11: Aide mémoire
B12: 11.4 | C12: 89 | D12: 11.4 | E12: 3.2 | F12: 5.4 | G12: 266 | H12: 1021.9 | I12: 0 | J12: 0 | K12: 0 | L12: 31 | M12: 50.5 | N12: 50.5 | O12: 9.9 | P12: 10.2 | Q12: 00:03:00 | Z12: NE | AB12: 45 | AD12: 56 | AE12: 67 | AK12: Pluie | AM12: =SOMME(K9:K1448)
B13: 11.4 | C13: 89 | D13: 11.4 | E13: 2.5 | F13: 3.6 | G13: 172 | H13: 1022 | I13: 0 | J13: 0 | K13: 0 | L13: 31 | M13: 50.5 | N13: 50.5 | O13: 9.9 | P13: 10.1 | Q13: 00:04:00 | Z13: ENE | AB13: 67.5 | AD13: 78.5 | AE13: 90 | AJ13: AK | AM13: =MAX(K9:K1448)
B14: 11.4 | C14: 89 | D14: 11.4 | E14: 3.2 | F14: 3.6 | G14: 23 | H14: 1022.1 | I14: 0 | J14: 0 | K14: 0 | L14: 31 | M14: 50.5 | N14: 50.5 | O14: 9.9 | P14: 10.1 | Q14: 00:05:00 | AB14: 90 | AD14: 101 | AE14: 112 | AK14: Commentaires | AO14: =SOMME(U9:U1448)
B15: 11.4 | C15: 90 | D15: 11.4 | E15: 0 | F15: 0 | G15: 26 | H15: 1022 | I15: 0 | J15: 0 | K15: 0 | L15: 31 | M15: 50.5 | N15: 50.5 | O15: 9.9 | P15: 10.1 | Q15: 00:06:00 | Z15: ESE | AB15: 112.5 | AD15: 123.5 | AE15: 135
B16: 11.4 | C16: 90 | D16: 11.4 | E16: 2.2 | F16: 3.6 | G16: 8 | H16: 1021.9 | I16: 0 | J16: 0 | K16: 0 | L16: 31 | M16: 50.5 | N16: 50.5 | O16: 9.9 | P16: 10.1 | Q16: 00:07:00 | Z16: SSE | AB16: 135 | AD16: 146 | AE16: 157 | AK16: Soleil | AM16: =SOMME(W9:W1448)
B17: 11.4 | C17: 90 | D17: 11.4 | E17: 0 | F17: 0 | G17: 144 | H17: 1022 | I17: 0 | J17: 0 | K17: 0 | L17: 31 | M17: 50.5 | N17: 50.5 | O17: 9.9 | P17: 10.2 | Q17: 00:08:00 | Z17: SE | AB17: 157.5 | AD17: 168.5 | AE17: 180 | AJ17: AV3 | AK17: Soleil | AM17: =W1450/60/1440
B18: 11.4 | C18: 90 | D18: 11.4 | E18: 1.1 | F18: 3.6 | G18: 113 | H18: 1022 | I18: 0 | J18: 0 | K18: 0 | L18: 31 | M18: 50.5 | N18: 50.5 | O18: 10 | P18: 10.1 | Q18: 00:09:00 | Z18: S | AB18: 180 | AD18: 191 | AE18: 202
B19: 11.3 | C19: 90 | D19: 11.3 | E19: 1.4 | F19: 3.6 | G19: 93 | H19: 1022.1 | I19: 0 | J19: 0 | K19: 0 | L19: 31 | M19: 50.5 | N19: 50.5 | O19: 10 | P19: 10.1 | Q19: 00:10:00 | Z19: SSO | AB19: 202.5 | AD19: 213.5 | AE19: 225 | AK19: Vues
B20: 11.3 | C20: 90 | D20: 11.3 | E20: 4.3 | F20: 5.4 | G20: 83 | H20: 1021.8 | I20: 0 | J20: 0 | K20: 0 | L20: 31 | M20: 50.5 | N20: 50.5 | O20: 9.9 | P20: 10.1 | Q20: 00:11:00 | Z20: SO | AB20: 225 | AD20: 236 | AE20: 247 | AJ20: 2023-01-11 | AK20: 30
B21: 11.3 | C21: 90 | D21: 11.3 | E21: 1.4 | F21: 1.8 | G21: 53 | H21: 1021.9 | I21: 0 | J21: 0 | K21: 0 | L21: 31 | M21: 50.5 | N21: 50.5 | O21: 9.9 | P21: 10.1 | Q21: 00:12:00 | Z21: OSO | AB21: 247.5 | AD21: 258.5 | AE21: 270 | AM21: =AK21-AK20 -> -30
B22: 11.3 | C22: 90 | D22: 11.3 | E22: 3.6 | F22: 7.2 | G22: 157 | H22: 1021.7 | I22: 0 | J22: 0 | K22: 0 | L22: 31 | M22: 50.5 | N22: 50.5 | O22: 9.9 | P22: 10.1 | Q22: 00:13:00 | Z22: O | AB22: 270 | AD22: 281 | AE22: 292 | AM22: 0
B23: 11.3 | C23: 90 | D23: 11.3 | E23: 4 | F23: 5.4 | G23: 263 | H23: 1021.8 | I23: 0 | J23: 0 | K23: 0 | L23: 31 | M23: 50.5 | N23: 50.5 | O23: 9.9 | P23: 10.1 | Q23: 00:14:00 | Z23: ONO | AB23: 292.5 | AD23: 303.5 | AE23: 315 | AM23: 0
B24: 11.3 | C24: 90 | D24: 11.3 | E24: 3.2 | F24: 3.6 | G24: 16 | H24: 1021.8 | I24: 0 | J24: 0 | K24: 0 | L24: 31 | M24: 50.5 | N24: 50.5 | O24: 9.9 | P24: 10.1 | Q24: 00:15:00 | Z24: NO | AB24: 315 | AD24: 326 | AE24: 337 | AM24: 0
B25: 11.3 | C25: 90 | D25: 11.3 | E25: 0 | F25: 0 | G25: 16 | H25: 1021.8 | I25: 0 | J25: 0 | K25: 0 | L25: 31 | M25: 50.5 | N25: 50.5 | O25: 9.9 | P25: 10.1 | Q25: 00:16:00 | U25: =IF(J25>0,60,"") ->  | Z25: NNO | AB25: 337.5 | AD25: 348.5 | AE25: 349 | AM25: 0
B26: 11.3 | C26: 90 | D26: 11.3 | E26: 1.8 | F26: 1.8 | G26: 37 | H26: 1021.7 | I26: 0 | J26: 0 | K26: 0 | L26: 31 | M26: 50.5 | N26: 50.5 | O26: 9.9 | P26: 10 | Q26: 00:17:00 | Z26: N | AB26: 349 | AD26: 360 | AM26: 0
B27: 11.3 | C27: 90 | D27: 11.3 | E27: 1.4 | F27: 3.6 | G27: 68 | H27: 1021.6 | I27: 0 | J27: 0 | K27: 0 | L27: 31 | M27: 50.5 | N27: 50.5 | O27: 9.9 | P27: 10 | Q27: 00:18:00 | AM27: 0
B28: 11.3 | C28: 90 | D28: 11.3 | E28: 2.2 | F28: 3.6 | G28: 359 | H28: 1021.7 | I28: 0 | J28: 0 | K28: 0 | L28: 31 | M28: 50.5 | N28: 50.5 | O28: 9.8 | P28: 10 | Q28: 00:19:00 | AD28: =INDEX($Z$9:$Z$26,IF(ISNA(MATCH($AD$30,$AD$9:$AD$26,0)),MATCH($AD$30,$AD$9:$AD$26,1)+1,MATCH($AD$30,$AD$9:$AD$26,0)),1) -> NE | AM28: 0
B29: 11.3 | C29: 90 | D29: 11.3 | E29: 4.3 | F29: 7.2 | G29: 113 | H29: 1021.6 | I29: 0 | J29: 0 | K29: 0 | L29: 31 | M29: 50.5 | N29: 50.5 | O29: 9.9 | P29: 10 | Q29: 00:20:00 | AB29: =SUM(AB32:AB47) -> 1 | AD29: =MAX(AB32:AB47) -> 0.1960784314 | AF29: =SUM(AF32:AF47) -> 51 | AM29: 0
B30: 11.3 | C30: 90 | D30: 11.3 | E30: 1.1 | F30: 1.8 | G30: 214 | H30: 1021.6 | I30: 0 | J30: 0 | K30: 0 | L30: 31 | M30: 50.5 | N30: 50.5 | O30: 9.8 | P30: 10 | Q30: 00:21:00 | AD30: =VLOOKUP(AD29,AB32:AD47,AD31,0) -> 45 | AM30: 0
B31: 11.3 | C31: 90 | D31: 11.3 | E31: 2.9 | F31: 3.6 | G31: 148 | H31: 1021.8 | I31: 0 | J31: 0 | K31: 0 | L31: 31 | M31: 50.5 | N31: 50.5 | O31: 9.8 | P31: 9.9 | Q31: 00:22:00 | AD31: 3 | AM31: 0
B32: 11.3 | C32: 90 | D32: 11.3 | E32: 6.5 | F32: 11.2 | G32: 133 | H32: 1021.6 | I32: 0 | J32: 0 | K32: 0 | L32: 31 | M32: 50.5 | N32: 50.5 | O32: 9.8 | P32: 9.9 | Q32: 00:23:00 | AB32: =AF32/$AF$29 -> 0.07843137255 | AD32: 0 | AF32: =COUNTIF($G$9:$G$1448,AD32) -> 4 | AM32: 0
B33: 11.4 | C33: 90 | D33: 11.4 | E33: 1.1 | F33: 1.8 | G33: 126 | H33: 1021.6 | I33: 0 | J33: 0 | K33: 0 | L33: 31 | M33: 50.5 | N33: 50.5 | O33: 9.8 | P33: 9.9 | Q33: 00:24:00 | AB33: =AF33/$AF$29 -> 0.1176470588 | AD33: 22 | AF33: =COUNTIF($G$9:$G$1448,AD33) -> 6 | AM33: 0
B34: 11.4 | C34: 90 | D34: 11.4 | E34: 3.2 | F34: 5.4 | G34: 301 | H34: 1021.7 | I34: 0 | J34: 0 | K34: 0 | L34: 31 | M34: 50.5 | N34: 50.5 | O34: 9.8 | P34: 9.9 | Q34: 00:25:00 | AB34: =AF34/$AF$29 -> 0.1960784314 | AD34: 45 | AF34: 10 | AM34: 0
B35: 11.4 | C35: 90 | D35: 11.4 | E35: 1.8 | F35: 1.8 | G35: 12 | H35: 1021.5 | I35: 0 | J35: 0 | K35: 0 | L35: 31 | M35: 50.5 | N35: 50.5 | O35: 9.8 | P35: 9.9 | Q35: 00:26:00 | AB35: 0.09803921569 | AD35: 67 | AF35: =COUNTIF($G$9:$G$1448,AD35) -> 5 | AM35: 0
B36: 11.4 | C36: 90 | D36: 11.4 | E36: 1.4 | F36: 3.6 | G36: 49 | H36: 1021.5 | I36: 0 | J36: 0 | K36: 0 | L36: 31 | M36: 50.5 | N36: 50.5 | O36: 9.8 | P36: 9.9 | Q36: 00:27:00 | AB36: 0.05882352941 | AD36: 90 | AF36: 3 | AM36: 0
B37: 11.3 | C37: 90 | D37: 11.3 | E37: 4.7 | F37: 7.2 | G37: 171 | H37: 1021.5 | I37: 0 | J37: 0 | K37: 0 | L37: 31 | M37: 50.5 | N37: 50.5 | O37: 9.8 | P37: 9.9 | Q37: 00:28:00 | AB37: 0.09803921569 | AD37: 112 | AF37: 5 | AM37: 0
B38: 11.3 | C38: 90 | D38: 11.3 | E38: 3.2 | F38: 3.6 | G38: 72 | H38: 1021.5 | I38: 0 | J38: 0 | K38: 0 | L38: 31 | M38: 50.5 | N38: 50.5 | O38: 9.8 | P38: 10 | Q38: 00:29:00 | AB38: 0.03921568627 | AD38: 135 | AF38: 2 | AM38: 0
B39: 11.3 | C39: 90 | D39: 11.3 | E39: 3.6 | F39: 5.4 | G39: 5 | H39: 1021.5 | I39: 0 | J39: 0 | K39: 0 | L39: 31 | M39: 50.5 | N39: 50.5 | O39: 9.8 | P39: 10 | Q39: 00:30:00 | AB39: 0.05882352941 | AD39: 157 | AF39: 3 | AM39: 0 | AO39: ?
B40: 11.3 | C40: 90 | D40: 11.3 | E40: 0.7 | F40: 1.8 | G40: 6 | H40: 1021.3 | I40: 0 | J40: 0 | K40: 0 | L40: 31 | M40: 50.5 | N40: 50.5 | O40: 9.8 | P40: 9.9 | Q40: 00:31:00 | AB40: 0.03921568627 | AD40: 180 | AF40: 2 | AM40: 0
B41: 11.3 | C41: 90 | D41: 11.3 | E41: 2.2 | F41: 3.6 | G41: 61 | H41: 1021.4 | I41: 0 | J41: 0 | K41: 0 | L41: 31 | M41: 50.5 | N41: 50.5 | O41: 9.8 | P41: 9.9 | Q41: 00:32:00 | AB41: 0.01960784314 | AD41: 202 | AF41: 1 | AM41: 0
B42: 11.3 | C42: 90 | D42: 11.3 | E42: 1.4 | F42: 1.8 | G42: 170 | H42: 1021.5 | I42: 0 | J42: 0 | K42: 0 | L42: 31 | M42: 50.5 | N42: 50.5 | O42: 9.8 | P42: 10 | Q42: 00:33:00 | AB42: 0 | AD42: 225 | AF42: 0 | AM42: 0
B43: 11.3 | C43: 90 | D43: 11.3 | E43: 2.5 | F43: 3.6 | G43: 115 | H43: 1021.5 | I43: 0 | J43: 0 | K43: 0 | L43: 31 | M43: 50.5 | N43: 50.5 | O43: 9.8 | P43: 10 | Q43: 00:34:00 | AB43: 0.01960784314 | AD43: 247 | AF43: 1 | AM43: 0
B44: 11.3 | C44: 90 | D44: 11.3 | E44: 1.1 | F44: 1.8 | G44: 50 | H44: 1021.3 | I44: 0 | J44: 0 | K44: 0 | L44: 31 | M44: 50.5 | N44: 50.5 | O44: 9.8 | P44: 10 | Q44: 00:35:00 | AB44: 0 | AD44: 270 | AF44: 0 | AM44: 0
B45: 11.3 | C45: 90 | D45: 11.3 | E45: 3.2 | F45: 5.4 | G45: 149 | H45: 1021.4 | I45: 0 | J45: 0 | K45: 0 | L45: 31 | M45: 50.5 | N45: 50.5 | O45: 9.8 | P45: 10 | Q45: 00:36:00 | AB45: 0.03921568627 | AD45: 292 | AF45: 2 | AM45: 0
B46: 11.4 | C46: 90 | D46: 11.4 | E46: 2.9 | F46: 3.6 | G46: 64 | H46: 1021.2 | I46: 0 | J46: 0 | K46: 0 | L46: 31 | M46: 50.5 | N46: 50.5 | O46: 9.8 | P46: 10 | Q46: 00:37:00 | AB46: 0 | AD46: 315 | AF46: 0 | AM46: 0
B47: 11.4 | C47: 90 | D47: 11.4 | E47: 1.4 | F47: 3.6 | G47: 164 | H47: 1021.3 | I47: 0 | J47: 0 | K47: 0 | L47: 31 | M47: 50.5 | N47: 50.5 | O47: 9.8 | P47: 10 | Q47: 00:38:00 | AB47: 0.137254902 | AD47: 337 | AF47: 7 | AM47: 0
B48: 11.4 | C48: 90 | D48: 11.4 | E48: 1.4 | F48: 3.6 | G48: 99 | H48: 1021.4 | I48: 0 | J48: 0 | K48: 0 | L48: 31 | M48: 50.5 | N48: 50.5 | O48: 9.8 | P48: 10 | Q48: 00:39:00 | AM48: 0
B49: 11.4 | C49: 90 | D49: 11.4 | E49: 1.1 | F49: 1.8 | G49: 338 | H49: 1021.4 | I49: 0 | J49: 0 | K49: 0 | L49: 31 | M49: 50.5 | N49: 50.5 | O49: 9.8 | P49: 10.1 | Q49: 00:40:00
B50: 11.4 | C50: 91 | D50: 11.4 | E50: 2.2 | F50: 3.6 | G50: 24 | H50: 1021.1 | I50: 0 | J50: 0 | K50: 0 | L50: 31 | M50: 50.5 | N50: 50.5 | O50: 9.8 | P50: 10.1 | Q50: 00:41:00
B51: 11.4 | C51: 91 | D51: 11.4 | E51: 1.4 | F51: 1.8 | G51: 8 | H51: 1021.4 | I51: 0 | J51: 0 | K51: 0 | L51: 31 | M51: 50.5 | N51: 50.5 | O51: 9.8 | P51: 10.1 | Q51: 00:42:00
B52: 11.3 | C52: 91 | D52: 11.3 | E52: 3.6 | F52: 5.4 | G52: 323 | H52: 1021.2 | I52: 0 | J52: 0 | K52: 0 | L52: 31 | M52: 50.5 | N52: 50.5 | O52: 9.8 | P52: 10.1 | Q52: 00:43:00
B53: 11.3 | C53: 91 | D53: 11.3 | E53: 2.2 | F53: 3.6 | G53: 346 | H53: 1021.3 | I53: 0 | J53: 0 | K53: 0 | L53: 31 | M53: 50.5 | N53: 50.5 | O53: 9.8 | P53: 10 | Q53: 00:44:00
B54: 11.3 | C54: 91 | D54: 11.3 | E54: 2.9 | F54: 3.6 | G54: 354 | H54: 1021.4 | I54: 0 | J54: 0 | K54: 0 | L54: 31 | M54: 50.5 | N54: 50.5 | O54: 9.8 | P54: 10 | Q54: 00:45:00
B55: 11.3 | C55: 91 | D55: 11.3 | E55: 2.5 | F55: 3.6 | G55: 5 | H55: 1021.5 | I55: 0 | J55: 0 | K55: 0 | L55: 31 | M55: 50.5 | N55: 50.5 | O55: 9.8 | P55: 10 | Q55: 00:46:00
B56: 11.3 | C56: 91 | D56: 11.3 | E56: 5.8 | F56: 9.4 | G56: 147 | H56: 1021.4 | I56: 0 | J56: 0 | K56: 0 | L56: 31 | M56: 50.5 | N56: 50.5 | O56: 9.9 | P56: 10 | Q56: 00:47:00
B57: 11.3 | C57: 91 | D57: 11.3 | E57: 0.4 | F57: 1.8 | G57: 149 | H57: 1021.5 | I57: 0 | J57: 0 | K57: 0 | L57: 31 | M57: 50.5 | N57: 50.5 | O57: 9.9 | P57: 10 | Q57: 00:48:00
B58: 11.3 | C58: 91 | D58: 11.3 | E58: 2.5 | F58: 3.6 | G58: 7 | H58: 1021.2 | I58: 0 | J58: 0 | K58: 0 | L58: 31 | M58: 50.5 | N58: 50.5 | O58: 9.8 | P58: 10 | Q58: 00:49:00
B59: 11.3 | C59: 91 | D59: 11.3 | E59: 1.1 | F59: 1.8 | G59: 80 | H59: 1021.1 | I59: 0 | J59: 0 | K59: 0 | L59: 31 | M59: 50.5 | N59: 50.5 | O59: 9.8 | P59: 10 | Q59: 00:50:00
B60: 11.3 | C60: 91 | D60: 11.3 | E60: 1.8 | F60: 3.6 | G60: 91 | H60: 1021 | I60: 0 | J60: 0 | K60: 0 | L60: 31 | M60: 50.5 | N60: 50.5 | O60: 9.8 | P60: 10 | Q60: 00:51:00
B61: 11.3 | C61: 91 | D61: 11.3 | E61: 2.2 | F61: 3.6 | G61: 90 | H61: 1021.1 | I61: 0 | J61: 0 | K61: 0 | L61: 31 | M61: 50.5 | N61: 50.5 | O61: 9.8 | P61: 10 | Q61: 00:52:00
B62: 11.3 | C62: 92 | D62: 11.3 | E62: 1.8 | F62: 1.8 | G62: 86 | H62: 1021.1 | I62: 0 | J62: 0 | K62: 0 | L62: 31 | M62: 50.5 | N62: 50.5 | O62: 9.8 | P62: 10 | Q62: 00:53:00
B63: 11.3 | C63: 92 | D63: 11.3 | E63: 5.4 | F63: 7.2 | G63: 140 | H63: 1021.2 | I63: 0 | J63: 0 | K63: 0 | L63: 31 | M63: 50.5 | N63: 50.5 | O63: 9.8 | P63: 10 | Q63: 00:54:00
B64: 11.3 | C64: 92 | D64: 11.3 | E64: 2.9 | F64: 3.6 | G64: 132 | H64: 1021 | I64: 0 | J64: 0 | K64: 0 | L64: 31 | M64: 50.5 | N64: 50.5 | O64: 9.8 | P64: 10 | Q64: 00:55:00
B65: 11.3 | C65: 92 | D65: 11.3 | E65: 1.4 | F65: 5.4 | G65: 112 | H65: 1021 | I65: 0 | J65: 0 | K65: 0 | L65: 31 | M65: 50.5 | N65: 50.5 | O65: 9.8 | P65: 10 | Q65: 00:56:00
B66: 11.3 | C66: 91 | D66: 11.3 | E66: 1.1 | F66: 1.8 | G66: 351 | H66: 1021 | I66: 0 | J66: 0 | K66: 0 | L66: 31 | M66: 50.5 | N66: 50.5 | O66: 9.8 | P66: 10 | Q66: 00:57:00
B67: 11.4 | C67: 91 | D67: 11.4 | E67: 2.2 | F67: 3.6 | G67: 171 | H67: 1020.8 | I67: 0 | J67: 0 | K67: 0 | L67: 31 | M67: 50.5 | N67: 50.5 | O67: 9.8 | P67: 10.1 | Q67: 00:58:00
B68: 11.4 | C68: 92 | D68: 11.4 | E68: 3.2 | F68: 5.4 | G68: 144 | H68: 1021.2 | I68: 0 | J68: 0 | K68: 0 | L68: 31 | M68: 50.5 | N68: 50.5 | O68: 9.9 | P68: 10.1 | Q68: 00:59:00
B69: 11.4 | C69: 91 | D69: 11.4 | E69: 0.4 | F69: 1.8 | G69: 96 | H69: 1021 | I69: 0 | J69: 0 | K69: 0 | L69: 31 | M69: 50.5 | N69: 50.5 | O69: 9.9 | P69: 10.2 | Q69: 01:00:00
B70: 11.4 | C70: 92 | D70: 11.4 | E70: 1.8 | F70: 3.6 | G70: 352 | H70: 1021 | I70: 0 | J70: 0 | K70: 0 | L70: 31 | M70: 50.5 | N70: 50.5 | O70: 10 | P70: 10.2 | Q70: 01:01:00
B71: 11.4 | C71: 92 | D71: 11.4 | E71: 0.7 | F71: 1.8 | G71: 239 | H71: 1021.1 | I71: 0 | J71: 0 | K71: 0 | L71: 31 | M71: 50.5 | N71: 50.5 | O71: 10 | P71: 10.3 | Q71: 01:02:00
B72: 11.4 | C72: 92 | D72: 11.4 | E72: 4 | F72: 7.2 | G72: 196 | H72: 1021.2 | I72: 0 | J72: 0 | K72: 0 | L72: 31 | M72: 50.5 | N72: 50.5 | O72: 10 | P72: 10.3 | Q72: 01:03:00
B73: 11.4 | C73: 92 | D73: 11.4 | E73: 0.7 | F73: 1.8 | G73: 31 | H73: 1020.9 | I73: 0 | J73: 0 | K73: 0 | L73: 31 | M73: 50.5 | N73: 50.5 | O73: 10.1 | P73: 10.4 | Q73: 01:04:00
B74: 11.4 | C74: 92 | D74: 11.4 | E74: 0.4 | F74: 1.8 | G74: 32 | H74: 1021.2 | I74: 0 | J74: 0 | K74: 0 | L74: 31 | M74: 50.5 | N74: 50.5 | O74: 10.1 | P74: 10.4 | Q74: 01:05:00
B75: 11.4 | C75: 92 | D75: 11.4 | E75: 0.4 | F75: 1.8 | G75: 33 | H75: 1020.7 | I75: 0 | J75: 0 | K75: 0 | L75: 31 | M75: 50.5 | N75: 50.5 | O75: 10.2 | P75: 10.5 | Q75: 01:06:00 | U75: =IF(J75>0,60,"") -> 
B76: 11.4 | C76: 92 | D76: 11.4 | E76: 2.9 | F76: 3.6 | G76: 61 | H76: 1020.8 | I76: 0 | J76: 0 | K76: 0 | L76: 31 | M76: 50.5 | N76: 50.5 | O76: 10.2 | P76: 10.5 | Q76: 01:07:00
B77: 11.4 | C77: 92 | D77: 11.4 | E77: 1.1 | F77: 1.8 | G77: 66 | H77: 1020.9 | I77: 0 | J77: 0 | K77: 0 | L77: 31 | M77: 50.5 | N77: 50.5 | O77: 10.3 | P77: 10.5 | Q77: 01:08:00
B78: 11.4 | C78: 92 | D78: 11.4 | E78: 1.1 | F78: 3.6 | G78: 54 | H78: 1020.9 | I78: 0 | J78: 0 | K78: 0 | L78: 31 | M78: 50.5 | N78: 50.5 | O78: 10.3 | P78: 10.5 | Q78: 01:09:00
B79: 11.4 | C79: 92 | D79: 11.4 | E79: 1.8 | F79: 3.6 | G79: 4 | H79: 1020.9 | I79: 0 | J79: 0 | K79: 0 | L79: 31 | M79: 50.5 | N79: 50.5 | O79: 10.3 | P79: 10.6 | Q79: 01:10:00
B80: 11.4 | C80: 92 | D80: 11.4 | E80: 1.4 | F80: 1.8 | G80: 152 | H80: 1020.9 | I80: 0 | J80: 0 | K80: 0 | L80: 31 | M80: 50.5 | N80: 50.5 | O80: 10.3 | P80: 10.6 | Q80: 01:11:00
B81: 11.4 | C81: 92 | D81: 11.4 | E81: 0.4 | F81: 1.8 | G81: 121 | H81: 1020.9 | I81: 0 | J81: 0 | K81: 0 | L81: 31 | M81: 50.5 | N81: 50.5 | O81: 10.4 | P81: 10.6 | Q81: 01:12:00
B82: 11.4 | C82: 92 | D82: 11.4 | E82: 0.4 | F82: 1.8 | G82: 38 | H82: 1021 | I82: 0 | J82: 0 | K82: 0 | L82: 31 | M82: 50.5 | N82: 50.5 | O82: 10.4 | P82: 10.6 | Q82: 01:13:00
B83: 11.4 | C83: 92 | D83: 11.4 | E83: 4 | F83: 7.2 | G83: 145 | H83: 1020.8 | I83: 0 | J83: 0 | K83: 0 | L83: 31 | M83: 50.5 | N83: 50.5 | O83: 10.4 | P83: 10.6 | Q83: 01:14:00
B84: 11.4 | C84: 91 | D84: 11.4 | E84: 0.4 | F84: 1.8 | G84: 100 | H84: 1020.7 | I84: 0 | J84: 0 | K84: 0 | L84: 31 | M84: 50.5 | N84: 50.5 | O84: 10.3 | P84: 10.6 | Q84: 01:15:00
B85: 11.4 | C85: 91 | D85: 11.4 | E85: 4.7 | F85: 5.4 | G85: 131 | H85: 1020.7 | I85: 0 | J85: 0 | K85: 0 | L85: 31 | M85: 50.5 | N85: 50.5 | O85: 10.4 | P85: 10.5 | Q85: 01:16:00
B86: 11.4 | C86: 91 | D86: 11.4 | E86: 1.1 | F86: 1.8 | G86: 87 | H86: 1020.8 | I86: 0 | J86: 0 | K86: 0 | L86: 31 | M86: 50.5 | N86: 50.5 | O86: 10.3 | P86: 10.5 | Q86: 01:17:00
B87: 11.4 | C87: 92 | D87: 11.4 | E87: 2.5 | F87: 3.6 | G87: 117 | H87: 1020.7 | I87: 0 | J87: 0 | K87: 0 | L87: 31 | M87: 50.5 | N87: 50.5 | O87: 10.3 | P87: 10.5 | Q87: 01:18:00
B88: 11.4 | C88: 92 | D88: 11.4 | E88: 1.4 | F88: 1.8 | G88: 146 | H88: 1020.7 | I88: 0 | J88: 0 | K88: 0 | L88: 31 | M88: 50.5 | N88: 50.5 | O88: 10.3 | P88: 10.5 | Q88: 01:19:00
B89: 11.4 | C89: 92 | D89: 11.4 | E89: 1.4 | F89: 1.8 | G89: 90 | H89: 1020.9 | I89: 0 | J89: 0 | K89: 0 | L89: 31 | M89: 50.5 | N89: 50.5 | O89: 10.3 | P89: 10.5 | Q89: 01:20:00
B90: 11.4 | C90: 92 | D90: 11.4 | E90: 1.1 | F90: 3.6 | G90: 171 | H90: 1020.7 | I90: 0 | J90: 0 | K90: 0 | L90: 31 | M90: 50.5 | N90: 50.5 | O90: 10.3 | P90: 10.5 | Q90: 01:21:00
B91: 11.4 | C91: 92 | D91: 11.4 | E91: 4.7 | F91: 7.2 | G91: 120 | H91: 1020.8 | I91: 0 | J91: 0 | K91: 0 | L91: 31 | M91: 50.5 | N91: 50.5 | O91: 10.3 | P91: 10.5 | Q91: 01:22:00
B92: 11.4 | C92: 92 | D92: 11.4 | E92: 3.6 | F92: 3.6 | G92: 121 | H92: 1020.9 | I92: 0 | J92: 0 | K92: 0 | L92: 31 | M92: 50.5 | N92: 50.5 | O92: 10.3 | P92: 10.5 | Q92: 01:23:00
B93: 11.4 | C93: 91 | D93: 11.4 | E93: 1.8 | F93: 1.8 | G93: 64 | H93: 1020.6 | I93: 0 | J93: 0 | K93: 0 | L93: 31 | M93: 50.5 | N93: 50.5 | O93: 10.3 | P93: 10.6 | Q93: 01:24:00
B94: 11.4 | C94: 91 | D94: 11.4 | E94: 5 | F94: 5.4 | G94: 139 | H94: 1020.7 | I94: 0 | J94: 0 | K94: 0 | L94: 31 | M94: 50.5 | N94: 50.5 | O94: 10.4 | P94: 10.6 | Q94: 01:25:00
B95: 11.4 | C95: 91 | D95: 11.4 | E95: 2.5 | F95: 3.6 | G95: 45 | H95: 1020.6 | I95: 0 | J95: 0 | K95: 0 | L95: 31 | M95: 50.5 | N95: 50.5 | O95: 10.4 | P95: 10.7 | Q95: 01:26:00
B96: 11.5 | C96: 91 | D96: 11.5 | E96: 1.8 | F96: 3.6 | G96: 167 | H96: 1020.4 | I96: 0 | J96: 0 | K96: 0 | L96: 31 | M96: 50.5 | N96: 50.5 | O96: 10.4 | P96: 10.7 | Q96: 01:27:00
B97: 11.5 | C97: 91 | D97: 11.5 | E97: 1.4 | F97: 1.8 | G97: 68 | H97: 1020.6 | I97: 0 | J97: 0 | K97: 0 | L97: 31 | M97: 50.5 | N97: 50.5 | O97: 10.4 | P97: 10.7 | Q97: 01:28:00
B98: 11.5 | C98: 91 | D98: 11.5 | E98: 2.2 | F98: 3.6 | G98: 61 | H98: 1020.3 | I98: 0 | J98: 0 | K98: 0 | L98: 31 | M98: 50.5 | N98: 50.5 | O98: 10.5 | P98: 10.7 | Q98: 01:29:00
B99: 11.4 | C99: 91 | D99: 11.4 | E99: 2.9 | F99: 5.4 | G99: 105 | H99: 1020.4 | I99: 0 | J99: 0 | K99: 0 | L99: 31 | M99: 50.5 | N99: 50.5 | O99: 10.5 | P99: 10.8 | Q99: 01:30:00
B100: 11.4 | C100: 91 | D100: 11.4 | E100: 2.5 | F100: 5.4 | G100: 144 | H100: 1020.4 | I100: 0 | J100: 0 | K100: 0 | L100: 31 | M100: 50.5 | N100: 50.5 | O100: 10.6 | P100: 10.8 | Q100: 01:31:00
B101: 11.4 | C101: 91 | D101: 11.4 | E101: 2.9 | F101: 3.6 | G101: 87 | H101: 1020.4 | I101: 0 | J101: 0 | K101: 0 | L101: 31 | M101: 50.5 | N101: 50.5 | O101: 10.6 | P101: 10.8 | Q101: 01:32:00
B102: 11.5 | C102: 91 | D102: 11.5 | E102: 1.4 | F102: 1.8 | G102: 292 | H102: 1020.3 | I102: 0 | J102: 0 | K102: 0 | L102: 31 | M102: 50.5 | N102: 50.5 | O102: 10.6 | P102: 10.8 | Q102: 01:33:00
B103: 11.5 | C103: 91 | D103: 11.5 | E103: 4 | F103: 7.2 | G103: 134 | H103: 1020.3 | I103: 0 | J103: 0 | K103: 0 | L103: 31 | M103: 50.5 | N103: 50.5 | O103: 10.7 | P103: 10.9 | Q103: 01:34:00
B104: 11.5 | C104: 91 | D104: 11.5 | E104: 3.2 | F104: 3.6 | G104: 148 | H104: 1020.5 | I104: 0 | J104: 0 | K104: 0 | L104: 31 | M104: 50.5 | N104: 50.5 | O104: 10.6 | P104: 10.9 | Q104: 01:35:00
B105: 11.5 | C105: 91 | D105: 11.5 | E105: 2.5 | F105: 3.6 | G105: 83 | H105: 1020.5 | I105: 0 | J105: 0 | K105: 0 | L105: 31 | M105: 50.5 | N105: 50.5 | O105: 10.7 | P105: 10.9 | Q105: 01:36:00
B106: 11.5 | C106: 91 | D106: 11.5 | E106: 0 | F106: 0 | G106: 83 | H106: 1020.3 | I106: 0 | J106: 0 | K106: 0 | L106: 31 | M106: 50.5 | N106: 50.5 | O106: 10.7 | P106: 10.9 | Q106: 01:37:00
B107: 11.5 | C107: 91 | D107: 11.5 | E107: 3.2 | F107: 3.6 | G107: 156 | H107: 1020.2 | I107: 0 | J107: 0 | K107: 0 | L107: 31 | M107: 50.5 | N107: 50.5 | O107: 10.7 | P107: 11 | Q107: 01:38:00
B108: 11.5 | C108: 91 | D108: 11.5 | E108: 3.6 | F108: 5.4 | G108: 177 | H108: 1020.3 | I108: 0 | J108: 0 | K108: 0 | L108: 31 | M108: 50.5 | N108: 50.5 | O108: 10.7 | P108: 11 | Q108: 01:39:00
B109: 11.5 | C109: 90 | D109: 11.5 | E109: 1.4 | F109: 1.8 | G109: 79 | H109: 1020.2 | I109: 0 | J109: 0 | K109: 0 | L109: 31 | M109: 50.5 | N109: 50.5 | O109: 10.7 | P109: 11 | Q109: 01:40:00
B110: 11.5 | C110: 91 | D110: 11.5 | E110: 0 | F110: 0 | G110: 56 | H110: 1020.2 | I110: 0 | J110: 0 | K110: 0 | L110: 31 | M110: 50.5 | N110: 50.5 | O110: 10.8 | P110: 11 | Q110: 01:41:00
B111: 11.5 | C111: 90 | D111: 11.5 | E111: 2.5 | F111: 3.6 | G111: 165 | H111: 1020.2 | I111: 0 | J111: 0 | K111: 0 | L111: 31 | M111: 50.5 | N111: 50.5 | O111: 10.8 | P111: 11 | Q111: 01:42:00
B112: 11.5 | C112: 90 | D112: 11.5 | E112: 3.6 | F112: 5.4 | G112: 195 | H112: 1020.1 | I112: 0 | J112: 0 | K112: 0 | L112: 31 | M112: 50.5 | N112: 50.5 | O112: 10.8 | P112: 11.1 | Q112: 01:43:00
B113: 11.5 | C113: 90 | D113: 11.5 | E113: 2.2 | F113: 3.6 | G113: 98 | H113: 1020.3 | I113: 0 | J113: 0 | K113: 0 | L113: 31 | M113: 50.5 | N113: 50.5 | O113: 10.8 | P113: 11.1 | Q113: 01:44:00
B114: 11.5 | C114: 90 | D114: 11.5 | E114: 2.2 | F114: 3.6 | G114: 39 | H114: 1020.3 | I114: 0 | J114: 0 | K114: 0 | L114: 31 | M114: 50.5 | N114: 50.5 | O114: 10.8 | P114: 11.1 | Q114: 01:45:00
B115: 11.5 | C115: 90 | D115: 11.5 | E115: 1.4 | F115: 1.8 | G115: 16 | H115: 1020.1 | I115: 0 | J115: 0 | K115: 0 | L115: 31 | M115: 50.5 | N115: 50.5 | O115: 10.8 | P115: 11.1 | Q115: 01:46:00
B116: 11.5 | C116: 90 | D116: 11.5 | E116: 2.5 | F116: 7.2 | G116: 65 | H116: 1020.2 | I116: 0 | J116: 0 | K116: 0 | L116: 31 | M116: 50.5 | N116: 50.5 | O116: 10.8 | P116: 11.1 | Q116: 01:47:00
B117: 11.5 | C117: 90 | D117: 11.5 | E117: 0.7 | F117: 1.8 | G117: 158 | H117: 1020.1 | I117: 0 | J117: 0 | K117: 0 | L117: 31 | M117: 50.5 | N117: 50.5 | O117: 10.8 | P117: 11.1 | Q117: 01:48:00
B118: 11.5 | C118: 90 | D118: 11.5 | E118: 1.8 | F118: 3.6 | G118: 43 | H118: 1020.1 | I118: 0 | J118: 0 | K118: 0 | L118: 31 | M118: 50.5 | N118: 50.5 | O118: 10.9 | P118: 11.2 | Q118: 01:49:00
B119: 11.5 | C119: 91 | D119: 11.5 | E119: 5.4 | F119: 7.2 | G119: 112 | H119: 1020 | I119: 0 | J119: 0 | K119: 0 | L119: 31 | M119: 50.5 | N119: 50.5 | O119: 10.9 | P119: 11.1 | Q119: 01:50:00
B120: 11.5 | C120: 90 | D120: 11.5 | E120: 1.4 | F120: 3.6 | G120: 17 | H120: 1020.3 | I120: 0 | J120: 0 | K120: 0 | L120: 31 | M120: 50.5 | N120: 50.5 | O120: 10.9 | P120: 11.1 | Q120: 01:51:00
B121: 11.6 | C121: 90 | D121: 11.6 | E121: 3.2 | F121: 5.4 | G121: 335 | H121: 1020 | I121: 0 | J121: 0 | K121: 0 | L121: 31 | M121: 50.5 | N121: 50.5 | O121: 10.9 | P121: 11.2 | Q121: 01:52:00
B122: 11.6 | C122: 90 | D122: 11.6 | E122: 1.1 | F122: 1.8 | G122: 16 | H122: 1020.2 | I122: 0 | J122: 0 | K122: 0 | L122: 31 | M122: 50.5 | N122: 50.5 | O122: 11 | P122: 11.2 | Q122: 01:53:00
B123: 11.6 | C123: 91 | D123: 11.6 | E123: 0.4 | F123: 1.8 | G123: 21 | H123: 1020.3 | I123: 0 | J123: 0 | K123: 0 | L123: 31 | M123: 50.5 | N123: 50.5 | O123: 11 | P123: 11.2 | Q123: 01:54:00
B124: 11.7 | C124: 91 | D124: 11.7 | E124: 0.7 | F124: 1.8 | G124: 83 | H124: 1020.1 | I124: 0 | J124: 0 | K124: 0 | L124: 31 | M124: 50.5 | N124: 50.5 | O124: 11 | P124: 11.2 | Q124: 01:55:00
B125: 11.7 | C125: 91 | D125: 11.7 | E125: 1.1 | F125: 1.8 | G125: 337 | H125: 1020.1 | I125: 0 | J125: 0 | K125: 0 | L125: 31 | M125: 50.5 | N125: 50.5 | O125: 11 | P125: 11.2 | Q125: 01:56:00
B126: 11.7 | C126: 91 | D126: 11.7 | E126: 2.2 | F126: 3.6 | G126: 221 | H126: 1020.4 | I126: 0 | J126: 0 | K126: 0 | L126: 31 | M126: 50.5 | N126: 50.5 | O126: 11 | P126: 11.2 | Q126: 01:57:00
B127: 11.7 | C127: 91 | D127: 11.7 | E127: 1.8 | F127: 1.8 | G127: 18 | H127: 1020.2 | I127: 0 | J127: 0 | K127: 0 | L127: 31 | M127: 50.5 | N127: 50.5 | O127: 11 | P127: 11.2 | Q127: 01:58:00
B128: 11.7 | C128: 91 | D128: 11.7 | E128: 0.4 | F128: 1.8 | G128: 93 | H128: 1020.2 | I128: 0 | J128: 0 | K128: 0 | L128: 31 | M128: 50.5 | N128: 50.5 | O128: 11.1 | P128: 11.2 | Q128: 01:59:00
B129: 11.7 | C129: 91 | D129: 11.7 | E129: 2.5 | F129: 5.4 | G129: 350 | H129: 1020.1 | I129: 0 | J129: 0 | K129: 0 | L129: 31 | M129: 50.5 | N129: 50.5 | O129: 11.1 | P129: 11.2 | Q129: 02:00:00
B130: 11.7 | C130: 92 | D130: 11.7 | E130: 1.8 | F130: 3.6 | G130: 336 | H130: 1020.1 | I130: 0 | J130: 0 | K130: 0 | L130: 31 | M130: 50.5 | N130: 50.5 | O130: 11.1 | P130: 11.2 | Q130: 02:01:00
B131: 11.7 | C131: 92 | D131: 11.7 | E131: 2.2 | F131: 3.6 | G131: 348 | H131: 1020.1 | I131: 0 | J131: 0 | K131: 0 | L131: 31 | M131: 50.5 | N131: 50.5 | O131: 11.1 | P131: 11.2 | Q131: 02:02:00
B132: 11.7 | C132: 92 | D132: 11.7 | E132: 1.4 | F132: 3.6 | G132: 123 | H132: 1020.3 | I132: 0 | J132: 0 | K132: 0 | L132: 31 | M132: 50.5 | N132: 50.5 | O132: 11 | P132: 11.2 | Q132: 02:03:00
B133: 11.6 | C133: 92 | D133: 11.6 | E133: 1.4 | F133: 1.8 | G133: 55 | H133: 1020.2 | I133: 0 | J133: 0 | K133: 0 | L133: 31 | M133: 50.5 | N133: 50.5 | O133: 11 | P133: 11.2 | Q133: 02:04:00
B134: 11.6 | C134: 92 | D134: 11.6 | E134: 2.2 | F134: 5.4 | G134: 9 | H134: 1020 | I134: 0 | J134: 0 | K134: 0 | L134: 31 | M134: 50.5 | N134: 50.5 | O134: 11 | P134: 11.1 | Q134: 02:05:00
B135: 11.6 | C135: 93 | D135: 11.6 | E135: 3.6 | F135: 5.4 | G135: 85 | H135: 1020.1 | I135: 0 | J135: 0 | K135: 0 | L135: 31 | M135: 50.5 | N135: 50.5 | O135: 11 | P135: 11.1 | Q135: 02:06:00
B136: 11.6 | C136: 93 | D136: 11.6 | E136: 3.6 | F136: 5.4 | G136: 91 | H136: 1020.1 | I136: 0 | J136: 0 | K136: 0 | L136: 31 | M136: 50.5 | N136: 50.5 | O136: 11 | P136: 11.1 | Q136: 02:07:00
B137: 11.6 | C137: 93 | D137: 11.6 | E137: 4.3 | F137: 7.2 | G137: 83 | H137: 1020.1 | I137: 0 | J137: 0 | K137: 0 | L137: 31 | M137: 50.5 | N137: 50.5 | O137: 11 | P137: 11.1 | Q137: 02:08:00
B138: 11.6 | C138: 93 | D138: 11.6 | E138: 1.1 | F138: 1.8 | G138: 42 | H138: 1020.1 | I138: 0 | J138: 0 | K138: 0 | L138: 31 | M138: 50.5 | N138: 50.5 | O138: 11 | P138: 11.1 | Q138: 02:09:00
B139: 11.5 | C139: 93 | D139: 11.5 | E139: 2.9 | F139: 3.6 | G139: 355 | H139: 1019.9 | I139: 0 | J139: 0 | K139: 0 | L139: 31 | M139: 50.5 | N139: 50.5 | O139: 11 | P139: 11.1 | Q139: 02:10:00 | U139: =IF(J139>0,60,"") -> 
B140: 11.5 | C140: 94 | D140: 11.5 | E140: 6.1 | F140: 7.2 | G140: 107 | H140: 1019.9 | I140: 0 | J140: 0 | K140: 0 | L140: 31 | M140: 50.5 | N140: 50.5 | O140: 11 | P140: 11 | Q140: 02:11:00
B141: 11.5 | C141: 94 | D141: 11.5 | E141: 2.9 | F141: 5.4 | G141: 146 | H141: 1019.7 | I141: 0 | J141: 0 | K141: 0 | L141: 31 | M141: 50.5 | N141: 50.5 | O141: 11 | P141: 11 | Q141: 02:12:00
B142: 11.5 | C142: 94 | D142: 11.5 | E142: 4.3 | F142: 5.4 | G142: 175 | H142: 1019.7 | I142: 0 | J142: 0 | K142: 0 | L142: 31 | M142: 50.5 | N142: 50.5 | O142: 11 | P142: 11 | Q142: 02:13:00
B143: 11.4 | C143: 94 | D143: 11.4 | E143: 4.3 | F143: 7.2 | G143: 261 | H143: 1019.9 | I143: 0 | J143: 0 | K143: 0 | L143: 31 | M143: 50.5 | N143: 50.5 | O143: 11 | P143: 11 | Q143: 02:14:00
B144: 11.4 | C144: 95 | D144: 11.4 | E144: 1.4 | F144: 3.6 | G144: 52 | H144: 1019.9 | I144: 0 | J144: 0 | K144: 0 | L144: 31 | M144: 50.5 | N144: 50.5 | O144: 11 | P144: 11 | Q144: 02:15:00
B145: 11.4 | C145: 95 | D145: 11.4 | E145: 1.1 | F145: 1.8 | G145: 76 | H145: 1019.8 | I145: 0 | J145: 0 | K145: 0 | L145: 31 | M145: 50.5 | N145: 50.5 | O145: 11 | P145: 11 | Q145: 02:16:00
B146: 11.4 | C146: 95 | D146: 11.4 | E146: 2.9 | F146: 3.6 | G146: 30 | H146: 1019.7 | I146: 0 | J146: 0 | K146: 0 | L146: 31 | M146: 50.5 | N146: 50.5 | O146: 11 | P146: 11 | Q146: 02:17:00
B147: 11.4 | C147: 95 | D147: 11.4 | E147: 0.7 | F147: 1.8 | G147: 50 | H147: 1019.6 | I147: 0 | J147: 0 | K147: 0 | L147: 31 | M147: 50.5 | N147: 50.5 | O147: 11 | P147: 10.9 | Q147: 02:18:00
B148: 11.3 | C148: 95 | D148: 11.3 | E148: 5.4 | F148: 7.2 | G148: 112 | H148: 1019.6 | I148: 0 | J148: 0 | K148: 0 | L148: 31 | M148: 50.5 | N148: 50.5 | O148: 11 | P148: 10.9 | Q148: 02:19:00
B149: 11.3 | C149: 95 | D149: 11.3 | E149: 1.4 | F149: 3.6 | G149: 84 | H149: 1019.7 | I149: 0 | J149: 0 | K149: 0 | L149: 31 | M149: 50.5 | N149: 50.5 | O149: 11 | P149: 10.9 | Q149: 02:20:00
B150: 11.3 | C150: 95 | D150: 11.3 | E150: 1.4 | F150: 1.8 | G150: 81 | H150: 1019.6 | I150: 0 | J150: 0 | K150: 0 | L150: 31 | M150: 50.5 | N150: 50.5 | O150: 11 | P150: 10.9 | Q150: 02:21:00
B151: 11.3 | C151: 95 | D151: 11.3 | E151: 2.9 | F151: 3.6 | G151: 88 | H151: 1019.6 | I151: 0 | J151: 0 | K151: 0 | L151: 31 | M151: 50.5 | N151: 50.5 | O151: 11 | P151: 10.9 | Q151: 02:22:00
B152: 11.3 | C152: 95 | D152: 11.3 | E152: 2.2 | F152: 3.6 | G152: 60 | H152: 1019.6 | I152: 0 | J152: 0 | K152: 0 | L152: 31 | M152: 50.5 | N152: 50.5 | O152: 11 | P152: 10.9 | Q152: 02:23:00
B153: 11.3 | C153: 95 | D153: 11.3 | E153: 0.4 | F153: 1.8 | G153: 50 | H153: 1019.7 | I153: 0 | J153: 0 | K153: 0 | L153: 31 | M153: 50.5 | N153: 50.5 | O153: 10.9 | P153: 10.9 | Q153: 02:24:00
B154: 11.3 | C154: 95 | D154: 11.3 | E154: 3.2 | F154: 3.6 | G154: 122 | H154: 1019.8 | I154: 0 | J154: 0 | K154: 0 | L154: 31 | M154: 50.5 | N154: 50.5 | O154: 10.9 | P154: 10.9 | Q154: 02:25:00
B155: 11.3 | C155: 95 | D155: 11.3 | E155: 2.2 | F155: 3.6 | G155: 119 | H155: 1019.8 | I155: 0 | J155: 0 | K155: 0 | L155: 31 | M155: 50.5 | N155: 50.5 | O155: 10.9 | P155: 10.9 | Q155: 02:26:00
B156: 11.3 | C156: 95 | D156: 11.3 | E156: 2.9 | F156: 3.6 | G156: 84 | H156: 1019.5 | I156: 0 | J156: 0 | K156: 0 | L156: 31 | M156: 50.5 | N156: 50.5 | O156: 10.9 | P156: 10.9 | Q156: 02:27:00
B157: 11.4 | C157: 94 | D157: 11.4 | E157: 7.2 | F157: 11.2 | G157: 87 | H157: 1019.7 | I157: 0 | J157: 0 | K157: 0 | L157: 31 | M157: 50.5 | N157: 50.5 | O157: 10.9 | P157: 10.9 | Q157: 02:28:00
B158: 11.4 | C158: 94 | D158: 11.4 | E158: 3.2 | F158: 5.4 | G158: 171 | H158: 1019.6 | I158: 0 | J158: 0 | K158: 0 | L158: 31 | M158: 50.5 | N158: 50.5 | O158: 10.9 | P158: 10.9 | Q158: 02:29:00
B159: 11.4 | C159: 94 | D159: 11.4 | E159: 4.3 | F159: 9.4 | G159: 46 | H159: 1019.6 | I159: 0 | J159: 0 | K159: 0 | L159: 31 | M159: 50.5 | N159: 50.5 | O159: 10.9 | P159: 10.8 | Q159: 02:30:00
B160: 11.4 | C160: 94 | D160: 11.4 | E160: 0.7 | F160: 1.8 | G160: 159 | H160: 1019.6 | I160: 0 | J160: 0 | K160: 0 | L160: 31 | M160: 50.5 | N160: 50.5 | O160: 10.9 | P160: 10.8 | Q160: 02:31:00
B161: 11.4 | C161: 94 | D161: 11.4 | E161: 6.8 | F161: 9.4 | G161: 165 | H161: 1019.6 | I161: 0 | J161: 0 | K161: 0 | L161: 31 | M161: 50.5 | N161: 50.5 | O161: 10.9 | P161: 10.9 | Q161: 02:32:00
B162: 11.4 | C162: 94 | D162: 11.4 | E162: 6.5 | F162: 9.4 | G162: 149 | H162: 1019.4 | I162: 0 | J162: 0 | K162: 0 | L162: 31 | M162: 50.5 | N162: 50.5 | O162: 10.9 | P162: 10.9 | Q162: 02:33:00
B163: 11.5 | C163: 94 | D163: 11.5 | E163: 2.9 | F163: 5.4 | G163: 84 | H163: 1019.5 | I163: 0 | J163: 0 | K163: 0 | L163: 31 | M163: 50.5 | N163: 50.5 | O163: 10.9 | P163: 10.9 | Q163: 02:34:00
B164: 11.5 | C164: 94 | D164: 11.5 | E164: 4.3 | F164: 5.4 | G164: 160 | H164: 1019.5 | I164: 0 | J164: 0 | K164: 0 | L164: 31 | M164: 50.5 | N164: 50.5 | O164: 10.9 | P164: 10.9 | Q164: 02:35:00
B165: 11.5 | C165: 93 | D165: 11.5 | E165: 1.1 | F165: 1.8 | G165: 83 | H165: 1019.4 | I165: 0 | J165: 0 | K165: 0 | L165: 31 | M165: 50.5 | N165: 50.5 | O165: 10.9 | P165: 10.9 | Q165: 02:36:00
B166: 11.5 | C166: 93 | D166: 11.5 | E166: 5 | F166: 5.4 | G166: 201 | H166: 1019.2 | I166: 0 | J166: 0 | K166: 0 | L166: 31 | M166: 50.5 | N166: 50.5 | O166: 10.9 | P166: 10.9 | Q166: 02:37:00
B167: 11.6 | C167: 93 | D167: 11.6 | E167: 2.9 | F167: 5.4 | G167: 166 | H167: 1019.3 | I167: 0 | J167: 0 | K167: 0 | L167: 31 | M167: 50.5 | N167: 50.5 | O167: 10.9 | P167: 10.9 | Q167: 02:38:00
B168: 11.6 | C168: 93 | D168: 11.6 | E168: 6.1 | F168: 9.4 | G168: 189 | H168: 1019.1 | I168: 0 | J168: 0 | K168: 0 | L168: 31 | M168: 50.5 | N168: 50.5 | O168: 11 | P168: 10.9 | Q168: 02:39:00
B169: 11.6 | C169: 93 | D169: 11.6 | E169: 4 | F169: 7.2 | G169: 150 | H169: 1019.3 | I169: 0 | J169: 0 | K169: 0 | L169: 31 | M169: 50.5 | N169: 50.5 | O169: 10.9 | P169: 10.9 | Q169: 02:40:00
B170: 11.6 | C170: 93 | D170: 11.6 | E170: 4.7 | F170: 5.4 | G170: 94 | H170: 1019.3 | I170: 0 | J170: 0 | K170: 0 | L170: 31 | M170: 50.5 | N170: 50.5 | O170: 10.9 | P170: 10.9 | Q170: 02:41:00
B171: 11.6 | C171: 93 | D171: 11.6 | E171: 3.6 | F171: 5.4 | G171: 95 | H171: 1019.2 | I171: 0 | J171: 0 | K171: 0 | L171: 31 | M171: 50.5 | N171: 50.5 | O171: 10.9 | P171: 10.9 | Q171: 02:42:00
B172: 11.6 | C172: 93 | D172: 11.6 | E172: 3.6 | F172: 5.4 | G172: 164 | H172: 1019.4 | I172: 0 | J172: 0 | K172: 0 | L172: 31 | M172: 50.5 | N172: 50.5 | O172: 10.9 | P172: 10.9 | Q172: 02:43:00
B173: 11.6 | C173: 93 | D173: 11.6 | E173: 5.4 | F173: 7.2 | G173: 88 | H173: 1019.3 | I173: 0 | J173: 0 | K173: 0 | L173: 31 | M173: 50.5 | N173: 50.5 | O173: 10.8 | P173: 10.8 | Q173: 02:44:00
B174: 11.6 | C174: 93 | D174: 11.6 | E174: 6.1 | F174: 9.4 | G174: 99 | H174: 1019.1 | I174: 0 | J174: 0 | K174: 0 | L174: 31 | M174: 50.5 | N174: 50.5 | O174: 10.8 | P174: 10.8 | Q174: 02:45:00
B175: 11.6 | C175: 93 | D175: 11.6 | E175: 2.9 | F175: 3.6 | G175: 69 | H175: 1019.2 | I175: 0 | J175: 0 | K175: 0 | L175: 31 | M175: 50.5 | N175: 50.5 | O175: 10.8 | P175: 10.9 | Q175: 02:46:00
B176: 11.6 | C176: 93 | D176: 11.6 | E176: 3.6 | F176: 5.4 | G176: 219 | H176: 1019.2 | I176: 0 | J176: 0 | K176: 0 | L176: 31 | M176: 50.5 | N176: 50.5 | O176: 10.8 | P176: 10.9 | Q176: 02:47:00
B177: 11.6 | C177: 93 | D177: 11.6 | E177: 2.2 | F177: 7.2 | G177: 89 | H177: 1019.2 | I177: 0 | J177: 0 | K177: 0 | L177: 31 | M177: 50.5 | N177: 50.5 | O177: 10.8 | P177: 10.9 | Q177: 02:48:00
B178: 11.6 | C178: 93 | D178: 11.6 | E178: 6.5 | F178: 11.2 | G178: 65 | H178: 1019.2 | I178: 0 | J178: 0 | K178: 0 | L178: 31 | M178: 50.5 | N178: 50.5 | O178: 10.8 | P178: 10.9 | Q178: 02:49:00
B179: 11.7 | C179: 93 | D179: 11.7 | E179: 7.6 | F179: 11.2 | G179: 194 | H179: 1019.2 | I179: 0 | J179: 0 | K179: 0 | L179: 31 | M179: 50.5 | N179: 50.5 | O179: 10.8 | P179: 10.9 | Q179: 02:50:00
B180: 11.7 | C180: 93 | D180: 11.7 | E180: 2.2 | F180: 3.6 | G180: 338 | H180: 1019.3 | I180: 0 | J180: 0 | K180: 0 | L180: 31 | M180: 50.5 | N180: 50.5 | O180: 10.8 | P180: 10.9 | Q180: 02:51:00
B181: 11.7 | C181: 93 | D181: 11.7 | E181: 0.4 | F181: 1.8 | G181: 155 | H181: 1019 | I181: 0 | J181: 0 | K181: 0 | L181: 31 | M181: 50.5 | N181: 50.5 | O181: 10.8 | P181: 11 | Q181: 02:52:00
B182: 11.7 | C182: 93 | D182: 11.7 | E182: 2.2 | F182: 3.6 | G182: 43 | H182: 1019.1 | I182: 0 | J182: 0 | K182: 0 | L182: 31 | M182: 50.5 | N182: 50.5 | O182: 10.8 | P182: 11 | Q182: 02:53:00
B183: 11.7 | C183: 93 | D183: 11.7 | E183: 4.3 | F183: 5.4 | G183: 157 | H183: 1019.1 | I183: 0 | J183: 0 | K183: 0 | L183: 31 | M183: 50.5 | N183: 50.5 | O183: 10.8 | P183: 11 | Q183: 02:54:00
B184: 11.7 | C184: 93 | D184: 11.7 | E184: 1.4 | F184: 3.6 | G184: 152 | H184: 1019.3 | I184: 0 | J184: 0 | K184: 0 | L184: 31 | M184: 50.5 | N184: 50.5 | O184: 10.8 | P184: 11 | Q184: 02:55:00
B185: 11.7 | C185: 93 | D185: 11.7 | E185: 7.6 | F185: 11.2 | G185: 183 | H185: 1019.1 | I185: 0 | J185: 0 | K185: 0 | L185: 31 | M185: 50.5 | N185: 50.5 | O185: 10.8 | P185: 11 | Q185: 02:56:00
B186: 11.7 | C186: 93 | D186: 11.7 | E186: 2.2 | F186: 3.6 | G186: 147 | H186: 1019.2 | I186: 0 | J186: 0 | K186: 0 | L186: 31 | M186: 50.5 | N186: 50.5 | O186: 10.8 | P186: 11 | Q186: 02:57:00
B187: 11.7 | C187: 93 | D187: 11.7 | E187: 2.5 | F187: 3.6 | G187: 217 | H187: 1019 | I187: 0 | J187: 0 | K187: 0 | L187: 31 | M187: 50.5 | N187: 50.5 | O187: 10.8 | P187: 11 | Q187: 02:58:00
B188: 11.7 | C188: 93 | D188: 11.7 | E188: 4 | F188: 5.4 | G188: 342 | H188: 1019.2 | I188: 0 | J188: 0 | K188: 0 | L188: 31 | M188: 50.5 | N188: 50.5 | O188: 10.9 | P188: 11 | Q188: 02:59:00
B189: 11.7 | C189: 93 | D189: 11.7 | E189: 3.6 | F189: 5.4 | G189: 134 | H189: 1019.1 | I189: 0 | J189: 0 | K189: 0 | L189: 31 | M189: 50.5 | N189: 50.5 | O189: 10.9 | P189: 11 | Q189: 03:00:00
B190: 11.7 | C190: 93 | D190: 11.7 | E190: 4 | F190: 5.4 | G190: 162 | H190: 1019.2 | I190: 0 | J190: 0 | K190: 0 | L190: 31 | M190: 50.5 | N190: 50.5 | O190: 10.9 | P190: 11 | Q190: 03:01:00
B191: 11.7 | C191: 93 | D191: 11.7 | E191: 1.4 | F191: 1.8 | G191: 112 | H191: 1019.2 | I191: 0 | J191: 0 | K191: 0 | L191: 31 | M191: 50.5 | N191: 50.5 | O191: 10.8 | P191: 11 | Q191: 03:02:00
B192: 11.7 | C192: 93 | D192: 11.7 | E192: 3.2 | F192: 5.4 | G192: 87 | H192: 1019.1 | I192: 0 | J192: 0 | K192: 0 | L192: 31 | M192: 50.5 | N192: 50.5 | O192: 10.9 | P192: 11 | Q192: 03:03:00
B193: 11.7 | C193: 93 | D193: 11.7 | E193: 6.5 | F193: 9.4 | G193: 150 | H193: 1019.2 | I193: 0 | J193: 0 | K193: 0 | L193: 31 | M193: 50.5 | N193: 50.5 | O193: 10.9 | P193: 11 | Q193: 03:04:00
B194: 11.8 | C194: 93 | D194: 11.8 | E194: 4 | F194: 7.2 | G194: 169 | H194: 1019 | I194: 0 | J194: 0 | K194: 0 | L194: 31 | M194: 50.5 | N194: 50.5 | O194: 10.9 | P194: 11 | Q194: 03:05:00
B195: 11.8 | C195: 93 | D195: 11.8 | E195: 4 | F195: 7.2 | G195: 269 | H195: 1019 | I195: 0 | J195: 0 | K195: 0 | L195: 31 | M195: 50.5 | N195: 50.5 | O195: 10.9 | P195: 11.1 | Q195: 03:06:00
B196: 11.8 | C196: 93 | D196: 11.8 | E196: 0 | F196: 0 | G196: 116 | H196: 1018.9 | I196: 0 | J196: 0 | K196: 0 | L196: 31 | M196: 50.5 | N196: 50.5 | O196: 10.9 | P196: 11.1 | Q196: 03:07:00
B197: 11.8 | C197: 93 | D197: 11.8 | E197: 2.9 | F197: 3.6 | G197: 240 | H197: 1018.8 | I197: 0 | J197: 0 | K197: 0 | L197: 31 | M197: 50.5 | N197: 50.5 | O197: 10.9 | P197: 11.1 | Q197: 03:08:00
B198: 11.8 | C198: 93 | D198: 11.8 | E198: 3.6 | F198: 5.4 | G198: 323 | H198: 1018.9 | I198: 0 | J198: 0 | K198: 0 | L198: 31 | M198: 50.5 | N198: 50.5 | O198: 11 | P198: 11.2 | Q198: 03:09:00
B199: 11.8 | C199: 93 | D199: 11.8 | E199: 0.7 | F199: 1.8 | G199: 216 | H199: 1018.9 | I199: 0 | J199: 0 | K199: 0 | L199: 31 | M199: 50.5 | N199: 50.5 | O199: 11 | P199: 11.2 | Q199: 03:10:00
B200: 11.8 | C200: 93 | D200: 11.8 | E200: 2.2 | F200: 3.6 | G200: 93 | H200: 1018.8 | I200: 0 | J200: 0 | K200: 0 | L200: 31 | M200: 50.5 | N200: 50.5 | O200: 11 | P200: 11.2 | Q200: 03:11:00
... 1249 more rows

Sheet Janvier_2023
AG1: =$AG$5+RELEVÉS!$AK$5 -> 60.2 | BB1: La Rochelle | BC1: http://www.meteociel.fr/climatologie/villes.php?code=7316&mois=12&annee=2022 | BN1: Ephéméride | BO1: http://www.ephemeride.com/calendrier/solaire/19/horaires-du-soleil.html
AT2: ²
AD3: =$C$5 -> Janvier_2023 | AG3: Hauteur de pluie en mm | AK3: Temps de précipitations par 1/4 de journée | AU3: =$C$5 -> Janvier_2023 | AX3: Chaleur solaire | BB3: Marées | BC3: https://marine.meteoconsult.fr/meteo-marine/horaires-maree-la-tranche-sur-mer-1083-0.php
C5: Janvier_2023 | F5: Mise à jour | H5: le | J5: =NOW() -> 2023-01-14T20:19:20.280 | U5: =C5 -> Janvier_2023 | X5: =NOW() -> 2023-01-14T20:19:20.280 | AD5: Mise à jour | AG5: =SUM($AG$11:$AG$72) -> 50.5 | AI5: =SUM($AI$11:$AI$72) -> 2.722916667 | AK5: =SUM(AK$11:AK$72) -> 0.7861111111 | AM5: =SUM(AM$11:AM$72) -> 0.6076388889 | AO5: =SUM(AO$11:AO$72) -> 0.7631944444 | AQ5: =SUM(AQ$11:AQ$72) -> 0.5680555556 | AU5: Mise à jour | AX5: =SUM(AX$11:AX$72) -> 1.758333333 | BB5: T° de l'eau | BC5: https://fr.surf-forecast.com/breaks/La-Tranchesur-Mer/seatemp | BN5: meteofloralies | BO5: https://www.wunderground.com/dashboard/pws/ILATRA6
C7: Températures | F7: =MIN(F$11:F72) -> 0 | H7: =VLOOKUP($F$7,$F$11:$V$72,17,0) ->  | J7: =MIN($J$11:$J$72) -> 4 | L7: =VLOOKUP($J$7,$J$11:$V$72,13,0) -> 2023-01-03 | N7: =MAX(N$11:N72) -> 15 | P7: =VLOOKUP($N$7,$N$11:$V$72,9,0) -> 2023-01-01 | U7: Mise à jour | X7: Maxi | AD7: =TODAY() -> 2023-01-14 | AG7: =VLOOKUP($AG$9,$AG$11:$AV$72,16,0) -> 2023-01-02 | AI7: =VLOOKUP($AI$9,$AI$11:$AV$72,14,0) -> 2023-01-09 | AK7: Pluie AM | AM7: Pluie AM | AO7: Pluie AP | AQ7: Pluie AP | AU7: =TODAY() -> 2023-01-14 | AX7: =VLOOKUP($AX$9,$AX$11:$BB$72,5,0) -> 2023-01-03
F9: Ressentie | H9: =VLOOKUP($F$7,$F$11:$P$72,3,0) ->  | J9: Mini | L9: =VLOOKUP($J$7,$J$11:$L$72,3,0) -> 08:22:00 | N9: Maxi | P9: =VLOOKUP($N$7,$N$11:$P$72,3,0) -> 16:20:00 | U9: Vitesse du vent | X9: =MAX($X$11:$X$72) -> 51.3 | Z9: =VLOOKUP($X$9,$X$11:$AE$72,8,0) -> 2023-01-09 | AD9: =$BL$79+RELEVÉS!AG5 -> 60.2 | AE9: Année | AG9: =MAX($AG$11:$AG$72) -> 10.6 | AI9: =MAX($AI$11:AI$72) -> 0.56875 | AK9: de 0 à 6h59 | AM9: 7h à 11h59 | AO9: 12h à 18h59 | AQ9: 19h à 23h59 | AU9: Année | AV9: =$BN$79+$AX$5 -> 3.516666667 | AX9: =MAX($AX$11:$AX$72) -> 0.2534722222 | BE9: Météofloralies | BF9: =SUBSTITUE(TEXTE(MAX(CNUM(SUBSTITUE($U$2;".";","));CNUM(SUBSTITUE($V$2;".";",")));"standard");",";".")
C11: =PROPER(TEXT(D11,"JJJJ")) -> Dimanche | D11: 2023-01-01 | J11: 10.7 | L11: 0.4 | N11: 15 | P11: 0.6805555556 | U11: =$C11 -> Dimanche | V11: =$D11 -> 2023-01-01 | X11: 22 | Z11: 14:47:00 | AD11: =$C11 -> Dimanche | AE11: =$D11 -> 2023-01-01 | AG11: 6.1 | AI11: 06:25:00 | AK11: 00:39:00 | AM11: 02:30:00 | AO11: 00:00:00 | AQ11: 03:16:00 | AU11: =$C11 -> Dimanche | AV11: =$D11 -> 2023-01-01 | AX11: 00:41:00 | BA11: 8 | BB11: =D11 -> 2023-01-01 | BC11: =$C11 -> Dimanche
C13: =PROPER(TEXT(D13,"JJJJ")) -> Lundi | D13: =$D11+1 -> 2023-01-02 | J13: 8.3 | L13: 0.9895833333 | N13: 13.5 | P13: 0.4819444444 | U13: =$C13 -> Lundi | V13: =$D13 -> 2023-01-02 | X13: 13 | Z13: 21:46:00 | AD13: =$C13 -> Lundi | AE13: =$D13 -> 2023-01-02 | AG13: 10.6 | AI13: 07:57:00 | AK13: 06:58:00 | AM13: 00:59:00 | AO13: 00:00:00 | AQ13: 00:00:00 | AU13: =$C13 -> Lundi | AV13: =$D13 -> 2023-01-02 | AX13: 05:41:00 | BA13: 4 | BB13: =D13 -> 2023-01-02 | BC13: =$C13 -> Lundi
C15: =PROPER(TEXT(D15,"JJJJ")) -> Mardi | D15: =$D13+1 -> 2023-01-03 | J15: 4 | L15: 0.3486111111 | N15: 13.5 | P15: 0.5159722222 | U15: =$C15 -> Mardi | V15: =$D15 -> 2023-01-03 | X15: 13 | Z15: 12:45:00 | AD15: =$C15 -> Mardi | AE15: =$D15 -> 2023-01-03 | AG15: 0 | AI15: 00:00:00 | AK15: 00:00:00 | AM15: 00:00:00 | AO15: 00:00:00 | AQ15: 00:00:00 | AU15: =$C15 -> Mardi | AV15: =$D15 -> 2023-01-03 | AX15: 06:05:00 | BA15: 5 | BB15: =D15 -> 2023-01-03 | BC15: =$C15 -> Mardi
C17: =PROPER(TEXT(D17,"JJJJ")) -> Mercredi | D17: =$D15+1 -> 2023-01-04 | J17: 11.5 | L17: 0.1277777778 | N17: 13.2 | P17: 0.55 | U17: =$C17 -> Mercredi | V17: =$D17 -> 2023-01-04 | X17: 16.6 | Z17: 02:47:00 | AD17: =$C17 -> Mercredi | AE17: =$D17 -> 2023-01-04 | AG17: 0.5 | AI17: 01:51:00 | AK17: 00:00:00 | AM17: 00:56:00 | AO17: 00:55:00 | AQ17: 00:00:00 | AU17: =$C17 -> Mercredi | AV17: =$D17 -> 2023-01-04 | AX17: 02:39:00 | BA17: 6 | BB17: =D17 -> 2023-01-04 | BC17: =$C17 -> Mercredi
C19: =PROPER(TEXT(D19,"JJJJ")) -> Jeudi | D19: =$D17+1 -> 2023-01-05 | J19: 10.2 | L19: 0.7541666667 | N19: 13.9 | P19: 0.5395833333 | U19: =$C19 -> Jeudi | V19: =$D19 -> 2023-01-05 | X19: 13 | Z19: 12:02:00 | AD19: =$C19 -> Jeudi | AE19: =$D19 -> 2023-01-05 | AG19: 0.5 | AI19: 01:20:00 | AK19: 00:00:00 | AM19: 00:00:00 | AO19: 00:00:00 | AQ19: 01:20:00 | AU19: =$C19 -> Jeudi | AV19: =$D19 -> 2023-01-05 | AX19: 04:47:00 | BA19: 7 | BB19: =D19 -> 2023-01-05 | BC19: =$C19 -> Jeudi
C21: =PROPER(TEXT(D21,"JJJJ")) -> Vendredi | D21: =$D19+1 -> 2023-01-06 | J21: 9.8 | L21: 0.9236111111 | N21: 13.1 | P21: 0.6236111111 | U21: =$C21 -> Vendredi | V21: =$D21 -> 2023-01-06 | X21: 14.8 | Z21: 22:50:00 | AD21: =$C21 -> Vendredi | AE21: =$D21 -> 2023-01-06 | AG21: 0 | AI21: 00:00:00 | AK21: 00:00:00 | AM21: 00:00:00 | AO21: 00:00:00 | AQ21: 00:00:00 | AU21: =$C21 -> Vendredi | AV21: =$D21 -> 2023-01-06 | AX21: 03:52:00 | BA21: 8 | BB21: =D21 -> 2023-01-06 | BC21: =$C21 -> Vendredi
C23: =PROPER(TEXT(D23,"JJJJ")) -> Samedi | D23: =$D21+1 -> 2023-01-07 | J23: 8.6 | L23: 0.2701388889 | N23: 13.4 | P23: 0.6152777778 | U23: =$C23 -> Samedi | V23: =$D23 -> 2023-01-07 | X23: 22 | Z23: 13:17:00 | AD23: =$C23 -> Samedi | AE23: =$D23 -> 2023-01-07 | AG23: 1.8 | AI23: 05:36:00 | AK23: 00:00:00 | AM23: 02:12:00 | AO23: 00:59:00 | AQ23: 02:25:00 | AU23: =$C23 -> Samedi | AV23: =$D23 -> 2023-01-07 | AX23: 00:08:00 | BA23: 9 | BB23: =D23 -> 2023-01-07 | BC23: =$C23 -> Samedi
C25: =PROPER(TEXT(D25,"JJJJ")) -> Dimanche | D25: =$D23+1 -> 2023-01-08 | J25: 8.3 | L25: 0.7840277778 | N25: 11.9 | P25: 0.05277777778 | U25: =$C25 -> Dimanche | V25: =$D25 -> 2023-01-08 | X25: 31.3 | Z25: 21:58:00 | AD25: =$C25 -> Dimanche | AE25: =$D25 -> 2023-01-08 | AG25: 9.2 | AI25: 07:06:00 | AK25: 01:25:00 | AM25: 00:00:00 | AO25: 04:20:00 | AQ25: 01:22:00 | AU25: =$C25 -> Dimanche | AV25: =$D25 -> 2023-01-08 | AX25: 00:00:00 | BA25: 10 | BB25: =D25 -> 2023-01-08 | BC25: =$C25 -> Dimanche
C27: =PROPER(TEXT(D27,"JJJJ")) -> Lundi | D27: =$D25+1 -> 2023-01-09 | J27: 6.8 | L27: 0.3548611111 | N27: 11.2 | P27: 0.01944444444 | U27: =$C27 -> Lundi | V27: =$D27 -> 2023-01-09 | X27: 51.3 | Z27: 05:47:00 | AD27: =$C27 -> Lundi | AE27: =$D27 -> 2023-01-09 | AG27: 7.1 | AI27: 13:39:00 | AK27: 03:30:00 | AM27: 04:36:00 | AO27: 04:33:00 | AQ27: 01:00:00 | AU27: =$C27 -> Lundi | AV27: =$D27 -> 2023-01-09 | AX27: 03:28:00 | BA27: 11 | BB27: =D27 -> 2023-01-09 | BC27: =$C27 -> Lundi
C29: =PROPER(TEXT(D29,"JJJJ")) -> Mardi | D29: =$D27+1 -> 2023-01-10 | J29: 6.9 | L29: 0 | N29: 13.1 | P29: 0.9881944444 | U29: =$C29 -> Mardi | V29: =$D29 -> 2023-01-10 | X29: 20.2 | Z29: 15:39:00 | AD29: =$C29 -> Mardi | AE29: =$D29 -> 2023-01-10 | AG29: 3.8 | AI29: 06:54:00 | AK29: 02:14:00 | AM29: 01:51:00 | AO29: 02:25:00 | AQ29: 00:25:00 | AU29: =$C29 -> Mardi | AV29: =$D29 -> 2023-01-10 | AX29: 03:12:00 | BA29: 12 | BB29: =D29 -> 2023-01-10 | BC29: =$C29 -> Mardi
C31: =PROPER(TEXT(D31,"JJJJ")) -> Mercredi | D31: =$D29+1 -> 2023-01-11 | J31: 10.6 | L31: 0.4541666667 | N31: 13.2 | P31: 0.005555555556 | U31: =$C31 -> Mercredi | V31: =$D31 -> 2023-01-11 | X31: 22 | Z31: 04:47:00 | AD31: =$C31 -> Mercredi | AE31: =$D31 -> 2023-01-11 | AG31: 1.8 | AI31: 03:24:00 | AK31: 03:24:00 | AM31: 00:00:00 | AO31: 00:00:00 | AQ31: 00:00:00 | AU31: =$C31 -> Mercredi | AV31: =$D31 -> 2023-01-11 | AX31: 05:38:00 | BA31: 13 | BB31: =D31 -> 2023-01-11 | BC31: =$C31 -> Mercredi
C33: =PROPER(TEXT(D33,"JJJJ")) -> Jeudi | D33: =$D31+1 -> 2023-01-12 | J33: 10.7 | L33: 0.3451388889 | N33: 13.5 | P33: 0.5 | U33: =$C33 -> Jeudi | V33: =$D33 -> 2023-01-12 | X33: 31.3 | Z33: 08:50:00 | AD33: =$C33 -> Jeudi | AE33: =$D33 -> 2023-01-12 | AG33: 8.1 | AI33: 07:30:00 | AK33: 00:00:00 | AM33: 01:31:00 | AO33: 02:10:00 | AQ33: 03:50:00 | AU33: =$C33 -> Jeudi | AV33: =$D33 -> 2023-01-12 | AX33: 03:01:00 | BA33: 14 | BB33: =D33 -> 2023-01-12 | BC33: =$C33 -> Jeudi
C35: =PROPER(TEXT(D35,"JJJJ")) -> Vendredi | D35: =$D33+1 -> 2023-01-13 | J35: 9.8 | L35: 07:45:00 | N35: 12.6 | P35: 12:15:00 | U35: =$C35 -> Vendredi | V35: =$D35 -> 2023-01-13 | X35: 31.3 | Z35: 01:10:00 | AD35: =$C35 -> Vendredi | AE35: =$D35 -> 2023-01-13 | AG35: 1 | AI35: 03:39:00 | AK35: 00:42:00 | AM35: 00:00:00 | AO35: 02:57:00 | AQ35: 00:00:00 | AU35: =$C35 -> Vendredi | AV35: =$D35 -> 2023-01-13 | AX35: 03:00:00 | BA35: 15 | BB35: =D35 -> 2023-01-13 | BC35: =$C35 -> Vendredi
C37: =PROPER(TEXT(D37,"JJJJ")) -> Samedi | D37: =$D35+1 -> 2023-01-14 | U37: =$C37 -> Samedi | V37: =$D37 -> 2023-01-14 | AD37: =$C37 -> Samedi | AE37: =$D37 -> 2023-01-14 | AU37: =$C37 -> Samedi | AV37: =$D37 -> 2023-01-14 | BA37: 16 | BB37: =D37 -> 2023-01-14 | BC37: =$C37 -> Samedi
C39: =PROPER(TEXT(D39,"JJJJ")) -> Dimanche | D39: =$D37+1 -> 2023-01-15 | U39: =$C39 -> Dimanche | V39: =$D39 -> 2023-01-15 | AD39: =$C39 -> Dimanche | AE39: =$D39 -> 2023-01-15 | AU39: =$C39 -> Dimanche | AV39: =$D39 -> 2023-01-15 | BA39: 17 | BB39: =D39 -> 2023-01-15 | BC39: =$C39 -> Dimanche
C41: =PROPER(TEXT(D41,"JJJJ")) -> Lundi | D41: =$D39+1 -> 2023-01-16 | U41: =$C41 -> Lundi | V41: =$D41 -> 2023-01-16 | AD41: =$C41 -> Lundi | AE41: =$D41 -> 2023-01-16 | AU41: =$C41 -> Lundi | AV41: =$D41 -> 2023-01-16 | BA41: 18 | BB41: =D41 -> 2023-01-16 | BC41: =$C41 -> Lundi
C43: =PROPER(TEXT(D43,"JJJJ")) -> Mardi | D43: =$D41+1 -> 2023-01-17 | U43: =$C43 -> Mardi | V43: =$D43 -> 2023-01-17 | AD43: =$C43 -> Mardi | AE43: =$D43 -> 2023-01-17 | AU43: =$C43 -> Mardi | AV43: =$D43 -> 2023-01-17 | BA43: 19 | BB43: =D43 -> 2023-01-17 | BC43: =$C43 -> Mardi
C45: =PROPER(TEXT(D45,"JJJJ")) -> Mercredi | D45: =$D43+1 -> 2023-01-18 | U45: =$C45 -> Mercredi | V45: =$D45 -> 2023-01-18 | AD45: =$C45 -> Mercredi | AE45: =$D45 -> 2023-01-18 | AU45: =$C45 -> Mercredi | AV45: =$D45 -> 2023-01-18 | BA45: 20 | BB45: =D45 -> 2023-01-18 | BC45: =$C45 -> Mercredi
C47: =PROPER(TEXT(D47,"JJJJ")) -> Jeudi | D47: =$D45+1 -> 2023-01-19 | U47: =$C47 -> Jeudi | V47: =$D47 -> 2023-01-19 | AD47: =$C47 -> Jeudi | AE47: =$D47 -> 2023-01-19 | AU47: =$C47 -> Jeudi | AV47: =$D47 -> 2023-01-19 | BA47: 21 | BB47: =D47 -> 2023-01-19 | BC47: =$C47 -> Jeudi
C49: =PROPER(TEXT(D49,"JJJJ")) -> Vendredi | D49: =$D47+1 -> 2023-01-20 | U49: =$C49 -> Vendredi | V49: =$D49 -> 2023-01-20 | AD49: =$C49 -> Vendredi | AE49: =$D49 -> 2023-01-20 | AU49: =$C49 -> Vendredi | AV49: =$D49 -> 2023-01-20 | BA49: 22 | BB49: =D49 -> 2023-01-20 | BC49: =$C49 -> Vendredi
C51: =PROPER(TEXT(D51,"JJJJ")) -> Samedi | D51: =$D49+1 -> 2023-01-21 | U51: =$C51 -> Samedi | V51: =$D51 -> 2023-01-21 | AD51: =$C51 -> Samedi | AE51: =$D51 -> 2023-01-21 | AU51: =$C51 -> Samedi | AV51: =$D51 -> 2023-01-21 | BA51: 23 | BB51: =D51 -> 2023-01-21 | BC51: =$C51 -> Samedi
C53: =PROPER(TEXT(D53,"JJJJ")) -> Dimanche | D53: =$D51+1 -> 2023-01-22 | U53: =$C53 -> Dimanche | V53: =$D53 -> 2023-01-22 | AD53: =$C53 -> Dimanche | AE53: =$D53 -> 2023-01-22 | AU53: =$C53 -> Dimanche | AV53: =$D53 -> 2023-01-22 | BA53: 24 | BB53: =D53 -> 2023-01-22 | BC53: =$C53 -> Dimanche
C55: =PROPER(TEXT(D55,"JJJJ")) -> Lundi | D55: =$D53+1 -> 2023-01-23 | U55: =$C55 -> Lundi | V55: =$D55 -> 2023-01-23 | AD55: =$C55 -> Lundi | AE55: =$D55 -> 2023-01-23 | AU55: =$C55 -> Lundi | AV55: =$D55 -> 2023-01-23 | BA55: 22 | BB55: =D55 -> 2023-01-23 | BC55: =$C55 -> Lundi
C57: =PROPER(TEXT(D57,"JJJJ")) -> Mardi | D57: =$D55+1 -> 2023-01-24 | U57: =$C57 -> Mardi | V57: =$D57 -> 2023-01-24 | AD57: =$C57 -> Mardi | AE57: =$D57 -> 2023-01-24 | AU57: =$C57 -> Mardi | AV57: =$D57 -> 2023-01-24 | BA57: 23 | BB57: =D57 -> 2023-01-24 | BC57: =$C57 -> Mardi
C59: =PROPER(TEXT(D59,"JJJJ")) -> Mercredi | D59: =$D57+1 -> 2023-01-25 | U59: =$C59 -> Mercredi | V59: =$D59 -> 2023-01-25 | AD59: =$C59 -> Mercredi | AE59: =$D59 -> 2023-01-25 | AU59: =$C59 -> Mercredi | AV59: =$D59 -> 2023-01-25 | BA59: 25 | BB59: =D59 -> 2023-01-25 | BC59: =$C59 -> Mercredi
C61: =PROPER(TEXT(D61,"JJJJ")) -> Jeudi | D61: =$D59+1 -> 2023-01-26 | U61: =$C61 -> Jeudi | V61: =$D61 -> 2023-01-26 | AD61: =$C61 -> Jeudi | AE61: =$D61 -> 2023-01-26 | AU61: =$C61 -> Jeudi | AV61: =$D61 -> 2023-01-26 | BA61: 26 | BB61: =D61 -> 2023-01-26 | BC61: =$C61 -> Jeudi
C63: =PROPER(TEXT(D63,"JJJJ")) -> Vendredi | D63: =$D61+1 -> 2023-01-27 | U63: =$C63 -> Vendredi | V63: =$D63 -> 2023-01-27 | AD63: =$C63 -> Vendredi | AE63: =$D63 -> 2023-01-27 | AU63: =$C63 -> Vendredi | AV63: =$D63 -> 2023-01-27 | BA63: 27 | BB63: =D63 -> 2023-01-27 | BC63: =$C63 -> Vendredi
C65: =PROPER(TEXT(D65,"JJJJ")) -> Samedi | D65: =$D63+1 -> 2023-01-28 | U65: =$C65 -> Samedi | V65: =$D65 -> 2023-01-28 | AD65: =$C65 -> Samedi | AE65: =$D65 -> 2023-01-28 | AU65: =$C65 -> Samedi | AV65: =$D65 -> 2023-01-28 | BA65: 23 | BB65: =D65 -> 2023-01-28 | BC65: =$C65 -> Samedi
C67: =PROPER(TEXT(D67,"JJJJ")) -> Dimanche | D67: =$D65+1 -> 2023-01-29 | U67: =$C67 -> Dimanche | V67: =$D67 -> 2023-01-29 | AD67: =$C67 -> Dimanche | AE67: =$D67 -> 2023-01-29 | AU67: =$C67 -> Dimanche | AV67: =$D67 -> 2023-01-29 | BA67: 24 | BB67: =D67 -> 2023-01-29 | BC67: =$C67 -> Dimanche
C69: =PROPER(TEXT(D69,"JJJJ")) -> Lundi | D69: =$D67+1 -> 2023-01-30 | U69: =$C69 -> Lundi | V69: =$D69 -> 2023-01-30 | AD69: =$C69 -> Lundi | AE69: =$D69 -> 2023-01-30 | AU69: =$C69 -> Lundi | AV69: =$D69 -> 2023-01-30 | BA69: 22 | BB69: =D69 -> 2023-01-30 | BC69: =$C69 -> Lundi
C71: =PROPER(TEXT(D71,"JJJJ")) -> Mardi | D71: =$D69+1 -> 2023-01-31 | U71: =$C71 -> Mardi | V71: =$D71 -> 2023-01-31 | AD71: =$C71 -> Mardi | AE71: =$D71 -> 2023-01-31 | AU71: =$C71 -> Mardi | AV71: =$D71 -> 2023-01-31 | BA71: 23 | BB71: =D71 -> 2023-01-31 | BC71: =$C71 -> Mardi
F75: 22.3 | H75: 0.5513888889
F77: 17.4 | H77: 0.6618055556 | BF77: J7 | BH77: N7 | BJ77: X9 | BL77: AG5 | BN77: AX5
F79: 19.8 | H79: 0.7340277778 | BL79: =SUM(BL83:BL102) -> 60.2 | BN79: =SUM(BN83:BN102) -> 1.758333333
F81: 16.4 | H81: 0.5965277778 | BE81: T° Mini | BF81: =MIN(BF83:BF102) -> 4 | BG81: T° Maxi | BH81: =MAX(BH83:BH102) -> 15 | BI81: Vent | BJ81: =MAX(BJ83:BJ102) -> 51.3 | BK81: Pluie | BL81: =MAX(BL83:BL105) -> 60.2 | BM81: Soleil | BN81: =MAX(BN83:BN105) -> 1.758333333
F83: 17.1 | H83: 0.6381944444 | L83: Web cam | BE83: Janvier | BF83: =$J$7 -> 4 | BG83: =BE83 -> Janvier | BH83: =$N$7 -> 15 | BI83: =BE83 -> Janvier | BJ83: =$X$9 -> 51.3 | BK83: =BE83 -> Janvier | BL83: =$AG$1 -> 60.2 | BM83: =BE83 -> Janvier | BN83: =$AX$5 -> 1.758333333
C84: https://pv.viewsurf.com/2094/La-Tranche-sur-mer-Embarcadere?i=NzYxMDp1bmRlZmluZWQ | BE84: Février | BG84: =BE84 -> Février | BI84: =BE84 -> Février | BK84: =BE84 -> Février | BM84: =BE84 -> Février
F85: 18.3 | H85: 0.5548611111 | BE85: Mars | BG85: =BE85 -> Mars | BI85: =BE85 -> Mars | BK85: =BE85 -> Mars | BM85: =BE85 -> Mars
C86: https://pv.viewsurf.com/2010/La-Tranche-sur-mer-Plage-de-la-Terriere?i=NzM2NDp1bmRlZmluZWQ | BE86: Avril | BG86: Avril | BI86: Avril | BK86: Avril | BM86: Avril
F87: 17.5 | H87: 0.1916666667 | BE87: Mai | BG87: =BE87 -> Mai | BI87: =BE87 -> Mai | BK87: =BE87 -> Mai | BM87: =BE87 -> Mai
BE88: Juin | BG88: =BE88 -> Juin | BI88: =BE88 -> Juin | BK88: =BE88 -> Juin | BM88: =BE88 -> Juin
F89: 16.8 | H89: 0.6006944444 | BE89: Juillet | BG89: Juillet | BI89: Juillet | BK89: Juillet | BM89: Juillet
BE90: Aout | BG90: Aout | BI90: Aout | BK90: Aout | BM90: Aout
F91: 15.9 | H91: 0.5493055556 | BE91: Septembre | BG91: =BE91 -> Septembre | BI91: =BE91 -> Septembre | BK91: =BE91 -> Septembre | BM91: =BE91 -> Septembre
BE92: Octobre | BG92: =BE92 -> Octobre | BI92: =BE92 -> Octobre | BK92: =BE92 -> Octobre | BM92: =BE92 -> Octobre
F93: 16.5 | H93: 0.6479166667 | BE93: Novembre | BG93: =BE93 -> Novembre | BI93: =BE93 -> Novembre | BK93: =BE93 -> Novembre | BM93: =BE93 -> Novembre
BE94: Novembre | BG94: =BE94 -> Novembre | BI94: =BE94 -> Novembre | BK94: =BE94 -> Novembre | BM94: =BE94 -> Novembre
F95: 16.5 | H95: 0.6479166667
F97: 18.5 | H97: 0.6902777778
F99: 17.7 | H99: 0.6006944444
F101: 16.2 | H101: 0.31875
F103: 16.2 | H103: 0.31875
F105: 17.7 | H105: 0.5722222222
F107: 16.7 | H107: 0.7770833333
F109: 15.7 | H109: 0.5125
F111: 14.5 | H111: 0.5958333333
F113: 12.2 | H113: 0.6256944444
F115: 14.1 | H115: 0.5680555556
F117: 15.2 | H117: 0.4736111111
F119: 13.7 | H119: 0.5222222222
F121: 15 | H121: 0.5541666667
F123: 15.2 | H123: 0.5263888889
F125: 14.8 | H125: 0.5861111111
F127: 12.8 | H127: 0.5423611111
F129: 13.3 | H129: 0.7680555556
F131: 13.4 | H131: 0.4993055556
F133: 13.3 | H133: 0.5583333333
F135: 9.2 | H135: 0.6354166667
F137: 6.7 | H137: 0.5486111111
F139: 6.4 | H139: 0.6354166667
F141: 5.1 | H141: 0.6520833333
F143: 0
F145: 6.7 | H145: 0.5854166667
F147: 6.7 | H147: 0.5854166667
F149: 6.7 | H149: 0.5854166667
F151: 8.2 | H151: 0.6319444444
F153: 5.8 | H153: 0.5805555556
F155: 7.5 | H155: 0.5625
F157: 3.8 | H157: 0.6173611111
F159: 4.9
F161: 4.8 | H161: 0.6381944444
F163: 4.2 | H163: 0.5826388889
F165: 3 | H165: 0.69375
F167: 5.5 | H167: 0.9909722222
F169: 13.4 | H169: 0.6340277778
F171: 4.8 | H171: 0.5423611111
F173: 5.7 | H173: 0.6090277778
F175: 2.4 | H175: 0.6277777778
F177: 9.3 | H177: 0.7756944444
F179: 11.7 | H179: 0.7215277778
F181: 12.5 | H181: 0.6736111111
F183: 12.6 | H183: 0.58125
F185: 13.1 | H185: 0.7347222222
F187: 13.3 | H187: 0.3576388889
F189: 11.6 | H189: 0.7347222222
F191: 13.5 | H191: 0.6291666667
F193: 12 | H193: 0.6319444444
F195: 12 | H195: 0.6319444444
F197: 10.8 | H197: 0.9895833333
F199: 12.7 | H199: 0.7090277778
F201: 12.7 | H201: 0.7090277778
F203: 11.9 | H203: 0.03125
F205: 14.4 | H205: 0.8979166667
F207: 14.9 | H207: 0.8916666667
F209: 15 | H209: 0.6805555556
F211: 13.5 | H211: 0.4819444444
F213: 13.5 | H213: 0.5159722222
F215: 13.2 | H215: 0.55
F217: 13.9 | H217: 0.5395833333
F219: 13.1 | H219: 0.6236111111
F221: 13.4 | H221: 0.6152777778
F223: 11.9 | H223: 0.05277777778
F225: 11.2 | H225: 0.01944444444
F227: 13.1 | H227: 0.9881944444
F229: 13.2 | H229: 0.005555555556
F231: 13.5 | H231: 0.5
F233: 12.6 | H233: 0.5104166667

Sheet MINI-MAXI
A1: =Janvier_2023!C5 -> Janvier_2023
F2: =NOW() -> 2023-01-14T20:19:20.280
D3: Pluie Maxi Jour et total mois | G3: Températures Mini et Maxi | I3: =I1-940 -> -940
F4: Vent maxi | I4: 3
I5: =I2-I3-I4 -> 937
A6: Jour | B6: Mois | D6: __200
D7: __180 | E7: =INDIRECT($A$1&"!$W9") -> 00:00:00 | I7: =Janvier_2023!J7 -> 4
D8: __160 | E8: 132 | I8: 145
A9: =INDIRECT($A$1&"!$AG5") -> 50.5 | D9: __140 | E9: =INDIRECT($A$1&"!$X$9") -> 51.3 | I9: =I7-940 -> -936
A10: 200 | B10: 200 | D10: __120 | E10: 2 | I10: 3
A11: =100*(1-(A9/A10)) -> 74.75 | B11: =100*(1-(B9/B10)) -> 100 | D11: __100 | E11: =E8-E9-E10 -> 78.7 | I11: =I8-I9-I10 -> 1078
A12: =20*A11/100 -> 14.95 | B12: =20*B11/100 -> 20 | D12: __80 | F12: Soleil maxi
A13: 17 | B13: 28 | D13: __60
A14: =(A10/100)*(1+(2*A10/100))/2 -> 5 | B14: =(B10/100)*(1+(2*B10/100))/2 -> 5 | D14: __40 | I14: 22:00:00
D15: _20 | I15: 00:00:00
A16: =INDIRECT($A1&"!$AG9") -> 10.6 | I16: =Janvier_2023!$AX$9 -> 06:05:00
A17: =INDIRECT($A$1&"!$AG9") -> 10.6 | I17: =I14-I16 -> 15:55:00
G21: =Janvier_2023!L7 -> 2023-01-03 | H21: =Janvier_2023!P7 -> 2023-01-01

Sheet MOIS
A1: =Janvier_2023!C5 -> Janvier_2023
B3: Jours de pluie + de 2mm | E3: Jours de soleil + de 4h
A9: 31 | D9: 31 | F9: 31
A10: 0 | D10: 0 | F10: 0
A11: =C51 -> 7 | D11: =C50 -> 4 | F11: =C58 -> 
A12: =A9-A10-A11 -> 24 | D12: =D9-D10-D11 -> 27 | F12: =F9-F10-F11 -> 
B21: =NOW() -> 2023-01-14T20:19:20.280
B23: Heures de pluie | E23: Heures de soleil
A29: 2.5 | D29: 22.08333333
A30: 00:00:00 | D30: 00:00:00 | F30: 22.08333333
A31: =B48 -> 2.722916667 | D31: =C48 -> 1.758333333 | F31: 00:00:00
A32: =A29-A31 -> -0.2229166667 | D32: =D29-D31 -> 20.325 | F32: =C56 -> 
F33: =F30-F32 -> 
E44: Vent fort au-dessus de
E45: 50km/h
B46: Heures Pluie | C46: H de soleil
A48: Total | B48: =Janvier_2023!AI5 -> 2.722916667 | C48: =Janvier_2023!AX5 -> 1.758333333
B49: Jours de pluie
A50: Soleil | C50: =COUNTIF(INDIRECT($A$1&"!$AX11:$AX71"),">4:00") -> 4
A51: Pluie | C51: =COUNTIF(INDIRECT($A$1&"!$Ai11:$Ai71"),">4:00") -> 7 | G51: 31
G52: 0
A53: Nb | G53: =C59 -> 
G54: =G51-G52-G53 -> 
A55: Vent
A56: Nb d'heures < 1.1 km/h | C56: =Janvier_2023!#REF! -> 
A57: Nb de jours plus petit que 20km/h | C57: =SUM(#REF!) -> 
A58: Nb de jours entre 20 et 50 km/h | C58: =SUM(#REF!) -> 
A59: Nb de jours plus grand que 50km/h | C59: =SUM(#REF!) -> 

Sheet CONSOLE
B1: https://marine.meteoconsult.fr/meteo-marine/horaires-maree-la-tranche-sur-mer-1083-0.php | G1: Marées
E2: Lune
E3: Pleine Lune
B4: Températures Lune Chaleur solaire = T°+2° Vitesse du vent | D4: Premier Quartier | G4: Marée Haute | H4: 0.3652777778
G5: Marée basse | H5: 0.1256944444
G6: Coéfficient | H6: 53
G8: Marée Haute | H8: 2.37
G9: Marée basse | H9: 0.6458333333
G10: Coéfficient | H10: 50
E12: Conditions | G12: T° de l'eau | H12: 10
B13: Total luminosité : | E13: Pluie
B14: Température ressentie Vent en rafale : | H14: Soleil
B15: Dernière mise à jour : Vent moyen : | G15: Levé | H15: 08:45:00
G16: Couché | H16: 17:44:00
B17: Pôle culturel des Floralies Statistiques | G17: Heures soleil | H17: =H16-H15 -> 08:59:00
G19: T° extérieure | H19: =INDIRECT("RELEVÉS!B" & COUNT(RELEVÉS!B:B) + 6,TRUE) -> 12.3
G20: T° ressentie | H20: =INDIRECT("RELEVÉS!B" & COUNT(RELEVÉS!B:B) + 6,TRUE) -> 12.3
G22: H% du sol | H22: 0.51
G24: Vent moyen | H24: =RELEVÉS!U5+5 -> 11.62250923
G25: Vent console | H25: 25.6
G26: Vent rafale | H26: =H25+5 -> 30.6
B29: Haute Matinée Basse de l'eau Haute Après-midi Basse Humidité du sol à 20cm de la surface
D35: Météo + Température de l'eau ----> | H35: 18
B36: =NOW() -> 2023-01-14T20:19:20.280 | G36: Site | H36: http:///meteofloralies.free.fr
G37: Prévisions | H37: https://www.lachainemeteo.com/meteo-france/previsions-meteo-france-aujourdhui

Sheet GRAPHIQUES
C1: Dernière mise à jour le : | F1: =NOW() -> 2023-01-14T20:19:20.280
G2: ² | I2: Température Mini et Maxi extérieure
C3: Température extérieure
F4: ²
C5: Précipitations | I5: Précipitations
C9: Vitesse du vent de la journée
I10: Vitesse du vent
C11: Humidité
I16: Nombre d'heures de soleil
C18: Vitesse du vent
C25: Chaleur solaire

Sheet Essais Couleurs
B2: < 0° | E2: < 5 | H2: < 10 | K2: < 15 | N2: < 20 | Q2: < 25 | T2: < 25
B7: 255 | E7: 255 | H7: 112 | K7: 0 | N7: 0 | Q7: 51 | T7: 255
B8: 0 | E8: 0 | H8: 48 | K8: 112 | N8: 176 | Q8: 204 | T8: 255
B9: 0 | E9: 255 | H9: 160 | K9: 192 | N9: 240 | Q9: 204 | T9: 53
B17: < 30 | E17: < 35 | H17: < 40 | K17: < 45 | N17: < 50 | Q17: Je vais faire la même chose pour les heures de soleil et pour le vant
B22: 250 | E22: 228 | H22: 192 | K22: 167 | N22: 255
B23: 192 | E23: 108 | H23: 80 | K23: 62 | N23: 0
B24: 144 | E24: 10 | H24: 77 | K24: 59 | N24: 0
E30: Coéficient de marées | Q30: Coéficient de marées
A31: 0-10 | B31: 11-20 | C31: 21-30 | D31: 31-40 | E31: 41-50 | F31: 51-60 | G31: 61-70 | H31: 71-80 | I31: 81-90 | J31: 91-100 | K31: >100 | M31: 25-30 | N31: 31-40 | O31: 41-50 | P31: 51-60 | Q31: 61-70 | R31: 71-80 | S31: 81-90 | T31: 91-100 | U31: > 100
A33: 0 | B33: 210 | C33: 190 | D33: 140 | E33: 120 | F33: 230 | G33: 250 | H33: 250 | I33: 230 | J33: 250 | K33: 250 | M33: 210 | N33: 190 | O33: 180 | P33: 170 | Q33: 0 | R33: 120 | S33: 80 | T33: 250 | U33: 230
A34: 250 | B34: 230 | C34: 240 | D34: 200 | E34: 170 | F34: 180 | G34: 190 | H34: 150 | I34: 110 | J34: 90 | K34: 20 | M34: 230 | N34: 240 | O34: 220 | P34: 200 | Q34: 250 | R34: 170 | S34: 140 | T34: 150 | U34: 110
A35: 250 | B35: 240 | C35: 250 | D35: 220 | E35: 220 | F35: 180 | G35: 140 | H35: 70 | I35: 10 | J35: 90 | K35: 0 | M35: 240 | N35: 250 | O35: 230 | P35: 230 | Q35: 250 | R35: 220 | S35: 210 | T35: 70 | U35: 10
A39: Si ce n'est pas possible en dégradé, c'est aussi bien en uni | G39: En dessous, se sont les couleurs que fait la station
